Workbook

Sheet 1.全市一般公共预算收入
A1: 2023年攀枝花市一般公共预算收入预算表
E2: 单位：万元，%
A3: 科目 | B3: 上年预算数 | C3: 上年执行数 | D3: 预 算 数 | E3: 为上年预算 | F3: 为上年执行
A4: 一、税收收入 | B4: 506,356 | C4: 510,116 | D4: 563,550 | E4: 111.3 | F4: 110.5
A5: 增值税 | B5: 203,118 | C5: 203,261 | D5: 251,626 | E5: 123.9 | F5: 123.8
A6: 消费税
A7: 企业所得税 | B7: 71,568 | C7: 71,582 | D7: 74,710 | E7: 104.4 | F7: 104.4
A8: 个人所得税 | B8: 15,456 | C8: 15,509 | D8: 17,027 | E8: 110.2 | F8: 109.8
A9: 资源税 | B9: 42,458 | C9: 42,765 | D9: 45,128 | E9: 106.3 | F9: 105.5
A10: 城市维护建设税 | B10: 34,264 | C10: 34,250 | D10: 33,154 | E10: 96.8 | F10: 96.8
A11: 房产税 | B11: 20,271 | C11: 20,312 | D11: 21,495 | E11: 106.0 | F11: 105.8
A12: 印花税 | B12: 14,542 | C12: 14,586 | D12: 15,832 | E12: 108.9 | F12: 108.5
A13: 城镇土地使用税 | B13: 36,755 | C13: 37,069 | D13: 34,969 | E13: 95.1 | F13: 94.3
A14: 土地增值税 | B14: 8,278 | C14: 8,203 | D14: 9,423 | E14: 113.8 | F14: 114.9
A15: 车船税 | B15: 7,715 | C15: 7,635 | D15: 7,879 | E15: 102.1 | F15: 103.2
A16: 耕地占用税 | B16: 16,899 | C16: 17,059 | D16: 14,740 | E16: 87.2 | F16: 86.4
A17: 契税 | B17: 24,405 | C17: 27,246 | D17: 26,742 | E17: 109.6 | F17: 98.2
A18: 烟叶税 | B18: 6,411 | C18: 6,411 | D18: 6,465 | E18: 100.8 | F18: 100.8
A19: 环境保护税 | B19: 4,181 | C19: 4,193 | D19: 4,345 | E19: 103.9 | F19: 103.6
A20: 其他税收收入 | B20: 35 | C20: 35 | D20: 15 | E20: 42.9 | F20: 42.9
A21: 二、非税收入 | B21: 322,829 | C21: 322,829 | D21: 437,850 | E21: 135.6 | F21: 135.6
A22: 专项收入 | B22: 32,377 | C22: 31,367 | D22: 38,200 | E22: 118.0 | F22: 121.8
A23: 行政事业性收费收入 | B23: 17,502 | C23: 20,102 | D23: 20,240 | E23: 115.6 | F23: 100.7
A24: 罚没收入 | B24: 35,740 | C24: 35,940 | D24: 29,050 | E24: 81.3 | F24: 80.8
A25: 国有资本经营收入
A26: 国有资源（资产）有偿使用收入 | B26: 189,648 | C26: 185,358 | D26: 307,650 | E26: 162.2 | F26: 166.0
A27: 捐赠收入 | B27: 90 | C27: 90 | D27: 60 | E27: 66.7 | F27: 66.7
A28: 政府住房基金收入 | B28: 13,307 | C28: 13,307 | D28: 12,800 | E28: 96.2 | F28: 96.2
A29: 其他收入 | B29: 34,165 | C29: 36,665 | D29: 29,850 | E29: 87.4 | F29: 81.4
A30: 地方一般公共预算收入 | B30: 829,185 | C30: 832,945 | D30: 1,001,400 | E30: 120.8 | F30: 120.2

Sheet 2.全市一般公共预算支出
A1: 2023年攀枝花市一般公共预算支出预算表
D2: 单位：万元，%
A3: 科目 | B3: 上年预算数 | C3: 上年执行数 | D3: 预 算 数 | E3: 为上年预算 | F3: 为上年执行
A4: 一、一般公共服务支出 | B4: 176,959 | C4: 173,843 | D4: 187,792 | E4: 106.1 | F4: 108.0
A5: 二、外交支出 | B5: 0 | C5: 0 | D5: 0
A6: 三、国防支出 | B6: 767 | C6: 747 | D6: 600 | E6: 78.2 | F6: 80.3
A7: 四、公共安全支出 | B7: 103,800 | C7: 99,912 | D7: 102,637 | E7: 98.9 | F7: 102.7
A8: 五、教育支出 | B8: 254,771 | C8: 247,328 | D8: 256,874 | E8: 100.8 | F8: 103.9
A9: 六、科学技术支出 | B9: 5,993 | C9: 5,801 | D9: 6,556 | E9: 109.4 | F9: 113.0
A10: 七、文化旅游体育与传媒支出 | B10: 23,080 | C10: 22,459 | D10: 23,578 | E10: 102.2 | F10: 105.0
A11: 八、社会保障和就业支出 | B11: 187,302 | C11: 205,991 | D11: 215,465 | E11: 115.0 | F11: 104.6
A12: 九、卫生健康支出 | B12: 136,796 | C12: 134,491 | D12: 147,744 | E12: 108.0 | F12: 109.9
A13: 十、节能环保支出 | B13: 24,552 | C13: 23,910 | D13: 25,514 | E13: 103.9 | F13: 106.7
A14: 十一、城乡社区支出 | B14: 62,382 | C14: 64,258 | D14: 73,261 | E14: 117.4 | F14: 114.0
A15: 十二、农林水支出 | B15: 187,076 | C15: 184,387 | D15: 189,741 | E15: 101.4 | F15: 102.9
A16: 十三、交通运输支出 | B16: 68,213 | C16: 64,678 | D16: 58,743 | E16: 86.1 | F16: 90.8
A17: 十四、资源勘探工业信息等支出 | B17: 7,575 | C17: 7,269 | D17: 8,247 | E17: 108.9 | F17: 113.5
A18: 十五、商业服务业等支出 | B18: 3,970 | C18: 3,860 | D18: 3,954 | E18: 99.6 | F18: 102.4
A19: 十六、金融支出 | B19: 1,949 | C19: 1,836 | D19: 1,984 | E19: 101.8 | F19: 108.1
A20: 十七、自然资源海洋气象等支出 | B20: 16,747 | C20: 16,496 | D20: 15,874 | E20: 94.8 | F20: 96.2
A21: 十八、住房保障支出 | B21: 86,572 | C21: 87,210 | D21: 74,641 | E21: 86.2 | F21: 85.6
A22: 十九、粮油物资储备支出 | B22: 1,111 | C22: 1,111 | D22: 1,254 | E22: 112.9 | F22: 112.9
A23: 二十、灾害防治及应急管理支出 | B23: 18,300 | C23: 17,754 | D23: 18,200 | E23: 99.5 | F23: 102.5
A24: 二十一、预备费 | B24: 0 | C24: 0 | D24: 15,877
A25: 二十二、其他支出 | B25: 664 | C25: 664 | D25: 894 | E25: 134.7 | F25: 134.7
A26: 二十三、债务付息支出 | B26: 60,221 | C26: 57,603 | D26: 59,712 | E26: 99.2 | F26: 103.7
A27: 二十四、债务发行费用支出 | B27: 175 | C27: 175 | D27: 132 | E27: 75.4 | F27: 75.4
A28: 一般公共预算支出 | B28: 1,428,975 | C28: 1,421,783 | D28: 1,489,274 | E28: 104.2 | F28: 104.7

Sheet 3.全市一般公共预算收支平衡
A1: 2023年攀枝花市一般公共预算收支预算平衡表
A2: 单位：万元
A3: 科目 | B3: 预 算 数 | C3: 科目 | D3: 预 算 数
A4: 一般公共预算收入 | B4: 1,001,400 | C4: 一般公共预算支出 | D4: 1,489,274
A5: 上级补助收入 | B5: 383,215 | C5: 补助下级支出 | D5: 0
A6: 返还性收入 | B6: 28,611 | C6: 返还性支出 | D6: 0
A7: 所得税基数返还收入 | B7: 9,437 | C7: 所得税基数返还支出 | D7: 0
A8: 成品油税费改革税收返还收入 | B8: 21,087 | C8: 成品油税费改革税收返还支出 | D8: 0
A9: 增值税税收返还收入 | B9: 38,251 | C9: 增值税税收返还支出 | D9: 0
A10: 消费税税收返还收入 | B10: 966 | C10: 消费税税收返还支出 | D10: 0
A11: 增值税“五五分享”税收返还收入 | B11: -28,149 | C11: 增值税“五五分享”税收返还支出 | D11: 0
A12: 其他返还性收入 | B12: -12,981 | C12: 其他返还性支出 | D12: 0
A13: 一般性转移支付收入 | B13: 350,560 | C13: 一般性转移支付支出 | D13: 0
A14: 均衡性转移支付收入 | B14: 184,292 | C14: 均衡性转移支付支出 | D14: 0
A15: 县级基本财力保障机制奖补资金收入 | B15: 19,688 | C15: 县级基本财力保障机制奖补资金支出 | D15: 0
A16: 结算补助收入 | B16: 29,342 | C16: 结算补助支出 | D16: 0
A17: 资源枯竭型城市转移支付补助收入 | B17: 7,220 | C17: 资源枯竭型城市转移支付补助支出 | D17: 0
A18: 企业事业单位划转补助收入 | B18: 22,453 | C18: 企业事业单位划转补助支出 | D18: 0
A19: 重点生态功能区转移支付收入 | B19: 9,961 | C19: 重点生态功能区转移支付支出 | D19: 0
A20: 固定数额补助收入 | B20: 47,952 | C20: 固定数额补助支出 | D20: 0
A21: 农林水共同财政事权转移支付收入 | B21: 828 | C21: 农林水共同财政事权转移支付支出 | D21: 0
A22: 交通运输共同财政事权转移支付收入 | B22: 942 | C22: 交通运输共同财政事权转移支付支出 | D22: 0
A23: 增值税留抵退税转移支付收入 | B23: 24,686 | C23: 增值税留抵退税转移支付支出 | D23: 0
A24: 其他退税减税降费转移支付收入 | B24: 2,153 | C24: 其他退税减税降费转移支付支出 | D24: 0
A25: 其他一般性转移支付收入 | B25: 1,043 | C25: 其他一般性转移支付支出 | D25: 0
A26: 专项转移支付收入 | B26: 4,044 | C26: 专项转移支付支出 | D26: 0
A27: 下级上解收入 | C27: 上解上级支出 | D27: 123,879
A28: 体制上解收入 | C28: 体制上解支出 | D28: 11
A29: 专项上解收入 | C29: 专项上解支出 | D29: 123,868
A30: 上年结余 | B30: 276,659 | D30: 0
A31: 调入资金 | B31: 4,548 | C31: 调出资金 | D31: 0
A32: 从政府性基金预算调入 | B32: 0 | D32: 0
A33: 从国有资本经营预算调入 | B33: 4,548 | D33: 0
A34: 从其他资金调入 | B34: 0 | D34: 0
A35: 债务收入 | B35: 0 | C35: 债务还本支出 | D35: 48,504
A36: 地方政府债务收入 | B36: 0 | C36: 地方政府一般债务还本支出 | D36: 48,504
A37: 一般债务收入 | B37: 0 | C37: 地方政府一般债券还本支出 | D37: 44,136
A38: 地方政府一般债券收入 | B38: 0 | C38: 地方政府向外国政府借款还本支出 | D38: 4,068
A39: 地方政府向外国政府借款收入 | B39: 0 | C39: 地方政府向国际组织借款还本支出 | D39: 300
A40: 地方政府向国际组织借款收入 | B40: 0 | C40: 地方政府其他一般债务还本支出 | D40: 0
A41: 地方政府其他一般债务收入 | B41: 0 | D41: 0
A42: 债务转贷收入 | B42: 0 | C42: 债务转贷支出 | D42: 0
A43: 地方政府一般债务转贷收入 | B43: 0 | C43: 地方政府一般债券转贷支出 | D43: 0
A44: 地方政府一般债券转贷收入 | B44: 0 | C44: 地方政府向外国政府借款转贷支出 | D44: 0
A45: 地方政府向外国政府借款转贷收入 | B45: 0 | C45: 地方政府向国际组织借款转贷支出 | D45: 0
A46: 地方政府向国际组织借款转贷收入 | B46: 0 | C46: 地方政府其他一般债务转贷支出 | D46: 0
A47: 地方政府其他一般债务转贷收入 | B47: 0 | D47: 0
A48: 动用预算稳定调节基金 | C48: 安排预算稳定调节基金
A49: 接受其他地区援助收入 | B49: 0 | C49: 援助其他地区支出 | D49: 4,165
B50: 0 | C50: 年终结余
A51: 收 入 总 计 | B51: 1,665,822 | C51: 支 出 总 计 | D51: 1,665,822

Sheet 4.全市一般公共预算经济分类支出
A1: 2023年攀枝花市一般公共预算经济分类科目支出预算表
E2: 单位：万元，%
A3: 科目 | B3: 上年预算数 | C3: 上年执行数 | D3: 预 算 数 | E3: 为上年预算 | F3: 为上年执行
A4: 机关工资福利支出 | B4: 317,143 | C4: 319,582 | D4: =D5+D7+D6+D8 -> 325,991 | E4: =D4/B4*100 -> 102.8 | F4: =D4/C4*100 -> 102.0
A5: 工资奖金津补贴 | B5: 216,100 | C5: 220,339 | D5: 224,574 | E5: =D5/B5*100 -> 103.9 | F5: =D5/C5*100 -> 101.9
A6: 社会保障缴费 | B6: 46,575 | C6: 45,722 | D6: 46,758 | E6: 100.4 | F6: 102.3
A7: 住房公积金 | B7: 24,312 | C7: 23,953 | D7: 24,512 | E7: 100.8 | F7: 102.3
A8: 其他工资福利支出 | B8: 30,156 | C8: 29,568 | D8: 30,147 | E8: 100.0 | F8: 102.0
A9: 机关商品和服务支出 | B9: 283,794 | C9: 277,750 | D9: =SUM(D10:D19) -> 303,822 | E9: 107.1 | F9: 109.4
A10: 办公经费 | B10: 35,786 | C10: 35,000 | D10: 36,541 | E10: 102.1 | F10: 104.4
A11: 会议费 | B11: 1,173 | C11: 1,173 | D11: 1,200 | E11: 102.3 | F11: 102.3
A12: 培训费 | B12: 643 | C12: 643 | D12: 650 | E12: 101.1 | F12: 101.1
A13: 专用材料购置费 | B13: 682 | C13: 682 | D13: 700 | E13: 102.6 | F13: 102.6
A14: 委托业务费 | B14: 18,616 | C14: 18,606 | D14: 19,841 | E14: 106.6 | F14: 106.6
A15: 公务接待费 | B15: 918 | C15: 795 | D15: 790 | E15: 86.0 | F15: 99.4
A16: 因公出国（境）费用
A17: 公务用车运行维护费 | B17: 3,428 | C17: 3,050 | D17: 3,400 | E17: 99.2 | F17: 111.5
A18: 维修（护）费 | B18: 711 | C18: 711 | D18: 700 | E18: 98.4 | F18: 98.4
A19: 其他商品和服务支出 | B19: 221,836 | C19: 217,090 | D19: 240,000 | E19: 108.2 | F19: 110.6
A20: 机关资本性支出（一） | B20: 122,282 | C20: 122,369 | D20: =SUM(D21:D27) -> 133,360 | E20: 109.1 | F20: 109.0
A21: 房屋建筑物购建 | B21: 3,567 | C21: 3,567 | D21: 4,000 | E21: 112.1 | F21: 112.1
A22: 基础设施建设 | B22: 29,192 | C22: 29,192 | D22: 32,500 | E22: 111.3 | F22: 111.3
A23: 公务用车购置 | B23: 219 | C23: 219 | D23: 210 | E23: 95.9 | F23: 95.9
A24: 土地征迁补偿和安置支出 | B24: 4,356 | C24: 4,356 | D24: 4,400 | E24: 101.0 | F24: 101.0
A25: 设备购置 | B25: 1,808 | C25: 1,808 | D25: 1,800 | E25: 99.5 | F25: 99.5
A26: 大型修缮 | B26: 426 | C26: 426 | D26: 450 | E26: 105.6 | F26: 105.6
A27: 其他资本性支出 | B27: 82,714 | C27: 82,801 | D27: 90,000 | E27: 108.8 | F27: 108.7
A28: 机关资本性支出（二） | B28: 12,383 | C28: 12,383 | D28: =D29+D30+D31+D32+D33+D34 -> 12,000 | E28: 96.9 | F28: 96.9
A29: 房屋建筑物购建 | B29: 1,500 | C29: 1,500 | D29: 1,500 | E29: 100.0 | F29: 100.0
A30: 基础设施建设 | B30: 6,233 | C30: 6,233 | D30: 6,000 | E30: 96.3 | F30: 96.3
A31: 公务用车购置
A32: 设备购置 | B32: 3 | C32: 3
A33: 大型修缮
A34: 其他资本性支出 | B34: 4,647 | C34: 4,647 | D34: 4,500 | E34: 96.8 | F34: 96.8
A35: 对事业单位经常性补助 | B35: 441,960 | C35: 442,964 | D35: =D36+D37+D38 -> 454,321 | E35: 102.8 | F35: 102.6
A36: 工资福利支出 | B36: 331,863 | C36: 332,410 | D36: 342,510 | E36: 103.2 | F36: 103.0
A37: 商品和服务支出 | B37: 103,334 | C37: 103,291 | D37: =110504-6193 -> 104,311 | E37: =D37/B37*100 -> 100.9 | F37: =D37/C37*100 -> 101.0
A38: 其他对事业单位补助 | B38: 6,763 | C38: 7,263 | D38: 7,500 | E38: 110.9 | F38: 103.3
A39: 对事业单位资本性补助 | B39: 8,609 | C39: 9,059 | D39: =D40+D41 -> 11,000 | E39: 127.8 | F39: 121.4
A40: 资本性支出（一） | B40: 3,045 | C40: 2,995 | D40: 4,000 | E40: 131.4 | F40: 133.6
A41: 资本性支出（二） | B41: 5,564 | C41: 6,064 | D41: 7,000 | E41: 125.8 | F41: 115.4
A42: 对企业补助 | B42: 6,677 | C42: 6,674 | D42: =D43+D44+D45 -> 6,600 | E42: 98.8 | F42: 98.9
A43: 费用补贴 | B43: 2,116 | C43: 2,116 | D43: 2,000 | E43: 94.5 | F43: 94.5
A44: 利息补贴 | B44: 1,485 | C44: 1,482 | D44: 1,500 | E44: 101.0 | F44: 101.2
A45: 其他对企业补助 | B45: 3,076 | C45: 3,076 | D45: 3,100 | E45: 100.8 | F45: 100.8
A46: 对企业资本性支出 | B46: 10,000 | C46: 10,000 | D46: 12,000 | E46: 120.0 | F46: 120.0
A47: 对企业资本性支出（一）
A48: 对企业资本性支出（二） | B48: 10,000 | C48: 10,000 | D48: 12,000 | E48: 120.0 | F48: 120.0
A49: 对个人和家庭的补助 | B49: 111,867 | C49: 111,233 | D49: =D50+D51+D52+D53+D54 -> 111,423 | E49: 99.6 | F49: 100.2
A50: 社会福利和救助 | B50: 34,217 | C50: 34,169 | D50: 34,574 | E50: 101.0 | F50: 101.2
A51: 助学金 | B51: 4,481 | C51: 4,422 | D51: 4,500 | E51: 100.4 | F51: 101.8
A52: 个人农业生产补贴 | B52: 3,863 | C52: 3,863 | D52: 3,900 | E52: 101.0 | F52: 101.0
A53: 离退休费 | B53: 31,949 | C53: 31,997 | D53: 32,471 | E53: 101.6 | F53: 101.5
A54: 其他对个人和家庭补助 | B54: 37,357 | C54: 36,782 | D54: 35,978 | E54: 96.3 | F54: 97.8
A55: 对社会保障基金补助 | B55: 41,858 | C55: 39,985 | D55: =D56+D57+D58 -> 42,142 | E55: 100.7 | F55: 105.4
A56: 对社会保险基金补助 | B56: 41,858 | C56: 39,985 | D56: 42,142 | E56: 100.7 | F56: 105.4
A57: 补充全国社会保障基金
A58: 对机关事业单位职业年金的补助
A59: 债务利息及费用支出 | B59: 60,396 | C59: 57,778 | D59: =D60+D61+D62+D63 -> 59,844 | E59: 99.1 | F59: 103.6
A60: 国内债务付息 | B60: 48,745 | C60: 46,604 | D60: 48,712 | E60: 99.9 | F60: 104.5
A61: 国外债务付息 | B61: 11,476 | C61: 10,999 | D61: 11,000 | E61: 95.9 | F61: 100.0
A62: 国内债务发行费用 | B62: 175 | C62: 175 | D62: 132 | E62: 75.4 | F62: 75.4
A63: 国外债务发行费用
A64: 其他支出 | B64: 12,007 | C64: 12,007 | D64: =D65+D66+D67+D68 -> 16,771 | E64: 139.7 | F64: 139.7
A65: 赠与
A66: 国家赔偿费用支出
A67: 对民间非营利组织和群众性自治组织补贴 | B67: 249 | C67: 249
A68: 其他支出 | B68: 11,758 | C68: 11,758 | D68: 16,771 | E68: 142.6 | F68: 142.6
A69: 一般公共预算支出 | B69: =B64+B59+B49+B46+B42+B39+B35+B28+B20+B9+B4+B55 -> 1,428,975 | C69: =C64+C59+C49+C46+C42+C39+C35+C28+C20+C9+C4+C55 -> 1,421,783 | D69: =D64+D59+D49+D46+D42+D39+D35+D28+D20+D9+D4+D55 -> 1,489,274 | E69: 104.2 | F69: 104.7

Sheet 5.全市一般公共预算经济分类（基本）支出
A1: 2023年攀枝花市一般公共预算经济分类科目（基本）支出预算表
E2: 单位：万元，%
A3: 科目 | B3: 上年预算数 | C3: 上年执行数 | D3: 预 算 数 | E3: 为上年预算 | F3: 为上年执行
A4: 机关工资福利支出 | B4: 281,343 | C4: 285,317 | D4: =D5+D7+D6+D8 -> 289,649 | E4: =D4/B4*100 -> 103.0 | F4: =D4/C4*100 -> 101.5
A5: 工资奖金津补贴 | B5: 186,100 | C5: 189,518 | D5: 195,411 | E5: =D5/B5*100 -> 105.0 | F5: =D5/C5*100 -> 103.1
A6: 社会保障缴费 | B6: 41,575 | C6: 42,449 | D6: 40,587 | E6: 97.6 | F6: 95.6
A7: 住房公积金 | B7: 24,312 | C7: 23,953 | D7: 24,110 | E7: 99.2 | F7: 100.7
A8: 其他工资福利支出 | B8: 29,356 | C8: 29,397 | D8: 29,541 | E8: 100.6 | F8: 100.5
A9: 机关商品和服务支出 | B9: 96,154 | C9: 56,487 | D9: =SUM(D10:D19) -> 74,992 | E9: 78.0 | F9: 132.8
A10: 办公经费 | B10: 35,786 | C10: 35,000 | D10: 34,251 | E10: 95.7 | F10: 97.9
A11: 会议费 | B11: 578 | C11: 181 | D11: 195 | E11: 33.7 | F11: 107.7
A12: 培训费 | B12: 465 | C12: 97 | D12: 100 | E12: 21.5 | F12: 103.1
A13: 专用材料购置费 | B13: 112 | C13: 2 | E13: -.0 | F13: -.0
A14: 委托业务费 | B14: 5,046 | C14: 1,183 | D14: 1,500 | E14: 29.7 | F14: 126.8
A15: 公务接待费 | B15: 797 | C15: 685 | D15: 650 | E15: 81.5 | F15: 94.9
A16: 因公出国（境）费用
A17: 公务用车运行维护费 | B17: 3,299 | C17: 2,579 | D17: 2,405 | E17: =D17/B17*100 -> 72.9 | F17: =D17/C17*100 -> 93.3
A18: 维修（护）费 | B18: 467 | C18: 141 | D18: 150 | E18: =D18/B18*100 -> 32.1 | F18: =D18/C18*100 -> 106.4
A19: 其他商品和服务支出 | B19: 49,603 | C19: 16,619 | D19: 35,741 | E19: =D19/B19*100 -> 72.1 | F19: =D19/C19*100 -> 215.1
A20: 机关资本性支出（一）
A21: 房屋建筑物购建
A22: 基础设施建设
A23: 公务用车购置
A24: 土地征迁补偿和安置支出
A25: 设备购置
A26: 大型修缮
A27: 其他资本性支出
A28: 机关资本性支出（二）
A29: 房屋建筑物购建
A30: 基础设施建设
A31: 公务用车购置
A32: 设备购置
A33: 大型修缮
A34: 其他资本性支出
A35: 对事业单位经常性补助 | B35: 344,162 | C35: 344,674 | D35: =D36+D37+D38 -> 345,140 | E35: =D35/B35*100 -> 100.3 | F35: =D35/C35*100 -> 100.1
A36: 工资福利支出 | B36: 306,098 | C36: 306,569 | D36: 307,540 | E36: =D36/B36*100 -> 100.5 | F36: =D36/C36*100 -> 100.3
A37: 商品和服务支出 | B37: 32,301 | C37: 32,372 | D37: 32,100 | E37: =D37/B37*100 -> 99.4 | F37: =D37/C37*100 -> 99.2
A38: 其他对事业单位补助 | B38: 5,763 | C38: 5,733 | D38: 5,500 | E38: =D38/B38*100 -> 95.4 | F38: =D38/C38*100 -> 95.9
A39: 对事业单位资本性补助
A40: 资本性支出（一）
A41: 资本性支出（二）
A42: 对企业补助
A43: 费用补贴
A44: 利息补贴
A45: 其他对企业补助
A46: 对企业资本性支出
A47: 对企业资本性支出（一）
A48: 对企业资本性支出（二）
A49: 对个人和家庭的补助 | B49: 52,707 | C49: 52,318 | D49: =D50+D51+D52+D53+D54 -> 52,980 | E49: =D49/B49*100 -> 100.5 | F49: =D49/C49*100 -> 101.3
A50: 社会福利和救助 | B50: 15,138 | C50: 15,085 | D50: 15,080 | E50: 99.6 | F50: 100.0
A51: 助学金 | B51: 4,481 | C51: 4,422 | D51: 4,400 | E51: 98.2 | F51: 99.5
A52: 个人农业生产补贴
A53: 离退休费 | B53: 28,080 | C53: 27,825 | D53: 28,500 | E53: 101.5 | F53: 102.4
A54: 其他对个人和家庭补助 | B54: 5,008 | C54: 4,986 | D54: 5,000 | E54: 99.8 | F54: 100.3
A55: 对社会保障基金补助
A56: 对社会保险基金补助
A57: 补充全国社会保障基金
A58: 对机关事业单位职业年金的补助
A59: 债务利息及费用支出
A60: 国内债务付息
A61: 国外债务付息
A62: 国内债务发行费用
A63: 国外债务发行费用
A64: 其他支出
A65: 赠与
A66: 国家赔偿费用支出
A67: 对民间非营利组织和群众性自治组织补贴
A68: 其他支出
A69: 一般公共预算支出 | B69: 774,366 | C69: 738,796 | D69: =D64+D59+D49+D46+D42+D39+D35+D28+D20+D9+D4+D55 -> 762,761 | E69: =D69/B69*100 -> 98.5 | F69: =D69/C69*100 -> 103.2

Sheet 6.市本级一般公共预算收入
A1: 2023年攀枝花市市本级一般公共预算收入预算表
E2: 单位：万元，%
A3: 科目 | B3: 上年预算数 | C3: 上年执行数 | D3: 预 算 数 | E3: 为上年预算 | F3: 为上年执行
A4: 一、税收收入 | B4: 196,856 | C4: 200,616 | D4: =SUM(D5:D20) -> 200,000 | E4: =D4/B4*100 -> 101.6 | F4: =D4/C4*100 -> 99.7
A5: 增值税 | B5: 73,862 | C5: 74,005 | D5: 92,000 | E5: =D5/B5*100 -> 124.6 | F5: =D5/C5*100 -> 124.3
A6: 消费税
A7: 企业所得税 | B7: 23,500 | C7: 23,514 | D7: 20,000 | E7: =D7/B7*100 -> 85.1 | F7: =D7/C7*100 -> 85.1
A8: 个人所得税 | B8: 5,000 | C8: 5,053 | D8: 4,500 | E8: 90.0 | F8: =D8/C8*100 -> 89.1
A9: 资源税 | B9: 15,000 | C9: 15,307 | D9: 16,000 | E9: 106.7 | F9: 104.5
A10: 城市维护建设税 | B10: 17,800 | C10: 17,786 | D10: 16,000 | E10: 89.9 | F10: 90.0
A11: 房产税 | B11: 10,000 | C11: 10,041 | D11: 9,000 | E11: 90.0 | F11: 89.6
A12: 印花税 | B12: 8,500 | C12: 8,544 | D12: 8,000 | E12: 94.1 | F12: 93.6
A13: 城镇土地使用税 | B13: 18,000 | C13: 18,314 | D13: 14,500 | E13: 80.6 | F13: 79.2
A14: 土地增值税 | B14: 6,000 | C14: 5,925 | D14: 7,000 | E14: 116.7 | F14: 118.1
A15: 车船税 | B15: 2,400 | C15: 2,320 | D15: 2,500 | E15: 104.2 | F15: 107.8
A16: 耕地占用税 | B16: 3,000 | C16: 3,160
A17: 契税 | B17: 11,000 | C17: 13,841 | D17: 7,800 | E17: 70.9 | F17: =D17/C17*100 -> 56.4
A18: 烟叶税
A19: 环境保护税 | B19: 2,800 | C19: 2,812 | D19: 2,700 | E19: 96.4 | F19: 96.0
A20: 其他税收收入 | B20: -6 | C20: -6
A21: 二、非税收入 | B21: 197,347 | C21: 197,347 | D21: 170,000 | E21: 86.1 | F21: 86.1
A22: 专项收入 | B22: 12,510 | C22: 11,500 | D22: 12,000 | E22: 95.9 | F22: 104.3
A23: 行政事业性收费收入 | B23: 9,637 | C23: 12,237 | D23: 12,500 | E23: 129.7 | F23: 102.1
A24: 罚没收入 | B24: 15,500 | C24: 15,700 | D24: 15,000 | E24: 96.8 | F24: 95.5
A25: 国有资本经营收入
A26: 国有资源（资产）有偿使用收入 | B26: 132,300 | C26: 128,010 | D26: 100,000 | E26: 75.6 | F26: =D26/C26*100 -> 78.1
A27: 捐赠收入
A28: 政府住房基金收入 | B28: 12,400 | C28: 12,400 | D28: 12,500 | E28: 100.8 | F28: 100.8
A29: 其他收入 | B29: 15,000 | C29: 17,500 | D29: 18,000 | E29: 120.0 | F29: 102.9
A30: 地方一般公共预算收入 | B30: 394,203 | C30: 397,963 | D30: 370,000 | E30: 93.9 | F30: 93.0

Sheet 7.市本级一般公共预算支出
A1: 2023年攀枝花市市本级一般公共预算支出预算表
E2: 单位：万元，%
A3: 科目 | B3: 上年预算数 | C3: 上年执行数 | D3: 预 算 数 | E3: 为上年预算 | F3: 为上年执行
A4: 一般公共服务支出 | B4: 59,946 | C4: 56,830 | D4: 57,421 | E4: =D4/B4*100 -> 95.8 | F4: =D4/C4*100 -> 101.0
A5: 人大事务 | B5: 2,101 | C5: 1,921 | D5: 1,959 | E5: =D5/B5*100 -> 93.2 | F5: =D5/C5*100 -> 102.0
A6: 行政运行 | B6: 1,580 | C6: 1,428 | D6: 1,458 | E6: =D6/B6*100 -> 92.3 | F6: =D6/C6*100 -> 102.1
A7: 一般行政管理事务 | B7: 219 | C7: 209 | D7: 210 | E7: =D7/B7*100 -> 95.9 | F7: =D7/C7*100 -> 100.5
A8: 机关服务
A9: 人大会议 | B9: 203 | C9: 193 | D9: 195 | E9: =D9/B9*100 -> 96.1 | F9: =D9/C9*100 -> 101.0
A10: 人大立法 | B10: 1 | C10: 1 | D10: 1 | E10: 100.0 | F10: 100.0
A11: 人大监督
A12: 人大代表履职能力提升
A13: 代表工作 | B13: 46 | C13: 43 | D13: 45 | E13: 97.8 | F13: 104.7
A14: 人大信访工作
A15: 事业运行 | B15: 52 | C15: 47 | D15: 50 | E15: 96.2 | F15: 106.4
A16: 其他人大事务支出
A17: 政协事务 | B17: 1,640 | C17: 1,507 | D17: 1,535 | E17: 93.6 | F17: 101.9
A18: 行政运行 | B18: 1,184 | C18: 1,079 | D18: 1,085 | E18: 91.6 | F18: 100.6
A19: 一般行政管理事务 | B19: 209 | C19: 199 | D19: 205 | E19: 98.1 | F19: 103.0
A20: 机关服务
A21: 政协会议 | B21: 156 | C21: 146 | D21: 155 | E21: 99.4 | F21: 106.2
A22: 委员视察
A23: 参政议政
A24: 事业运行 | B24: 91 | C24: 83 | D24: 90 | E24: 98.9 | F24: 108.4
A25: 其他政协事务支出
A26: 政府办公厅（室）及相关机构事务 | B26: 11,701 | C26: 11,161 | D26: 11,652 | E26: 99.6 | F26: 104.4
A27: 行政运行 | B27: 5,580 | C27: 5,492 | D27: 5,650 | E27: 101.3 | F27: 102.9
A28: 一般行政管理事务 | B28: 1,901 | C28: 1,740 | D28: 1,780 | E28: 93.6 | F28: 102.3
A29: 机关服务
A30: 专项服务
A31: 专项业务及机关事务管理
A32: 政务公开审批
A33: 信访事务 | B33: 60 | C33: 54 | D33: 60 | E33: 100.0 | F33: 111.1
A34: 参事事务
A35: 事业运行 | B35: 1,780 | C35: 1,654 | D35: 1,750 | E35: 98.3 | F35: 105.8
A36: 其他政府办公厅（室）及相关机构事务支出 | B36: 2,380 | C36: 2,221 | D36: 2,412 | E36: 101.3 | F36: 108.6
A37: 发展与改革事务 | B37: 2,223 | C37: 2,082 | D37: 2,200 | E37: 99.0 | F37: 105.7
A38: 行政运行 | B38: 1,630 | C38: 1,509 | D38: 1,620 | E38: 99.4 | F38: 107.4
A39: 一般行政管理事务
A40: 机关服务
A41: 战略规划与实施
A42: 日常经济运行调节
A43: 社会事业发展规划
A44: 经济体制改革研究
A45: 物价管理
A46: 事业运行 | B46: 318 | C46: 308 | D46: 310 | E46: 97.5 | F46: 100.6
A47: 其他发展与改革事务支出 | B47: 275 | C47: 265 | D47: 270 | E47: 98.2 | F47: 101.9
A48: 统计信息事务 | B48: 1,167 | C48: 1,145 | D48: 1,162 | E48: 99.6 | F48: 101.5
A49: 行政运行 | B49: 1,007 | C49: 997 | D49: 1,005 | E49: 99.8 | F49: 100.8
A50: 一般行政管理事务 | B50: 31 | C50: 29 | D50: 32 | E50: 103.2 | F50: 110.3
A51: 机关服务
A52: 信息事务
A53: 专项统计业务
A54: 统计管理
A55: 专项普查活动
A56: 统计抽样调查 | B56: 10 | C56: 10 | D56: 10 | E56: 100.0 | F56: 100.0
A57: 事业运行 | B57: 119 | C57: 109 | D57: 115 | E57: 96.6 | F57: 105.5
A58: 其他统计信息事务支出
A59: 财政事务 | B59: 3,570 | C59: 3,418 | D59: 3,550 | E59: 99.4 | F59: 103.9
A60: 行政运行 | B60: 2,280 | C60: 2,162 | D60: 2,250 | E60: 98.7 | F60: 104.1
A61: 一般行政管理事务
A62: 机关服务 | B62: 121 | C62: 111 | D62: 120 | E62: 99.2 | F62: 108.1
A63: 预算改革业务
A64: 财政国库业务
A65: 财政监察
A66: 信息化建设
A67: 财政委托业务支出 | B67: 85 | C67: 81 | D67: 85 | E67: 100.0 | F67: 104.9
A68: 事业运行 | B68: 294 | C68: 284 | D68: 295 | E68: 100.3 | F68: 103.9
A69: 其他财政事务支出 | B69: 790 | C69: 780 | D69: 800 | E69: 101.3 | F69: 102.6
A70: 税收事务 | B70: 3,261 | C70: 2,980 | D70: 3,301 | E70: 101.2 | F70: 110.8
A71: 行政运行 | B71: 1,980 | C71: 1,806 | D71: 1,950 | E71: 98.5 | F71: 108.0
A72: 一般行政管理事务
A73: 机关服务
A74: 信息化建设
A75: 税收业务
A76: 事业运行 | B76: 1 | C76: 1 | D76: 1 | E76: =D76/B76*100 -> 100.0 | F76: =D76/C76*100 -> 100.0
A77: 其他税收事务支出 | B77: 1,280 | C77: 1,173 | D77: 1,350 | E77: =D77/B77*100 -> 105.5 | F77: =D77/C77*100 -> 115.1
A78: 审计事务 | B78: 1,526 | C78: 1,416 | D78: 1,538 | E78: =D78/B78*100 -> 100.8 | F78: =D78/C78*100 -> 108.6
A79: 行政运行 | B79: 1,230 | C79: 1,135 | D79: 1,250 | E79: =D79/B79*100 -> 101.6 | F79: =D79/C79*100 -> 110.1
A80: 一般行政管理事务 | B80: 235 | C80: 225 | D80: 230 | E80: =D80/B80*100 -> 97.9 | F80: =D80/C80*100 -> 102.2
A81: 机关服务
A82: 审计业务
A83: 审计管理
A84: 信息化建设
A85: 事业运行 | B85: 58 | C85: 53 | D85: 55 | E85: =D85/B85*100 -> 94.8 | F85: =D85/C85*100 -> 103.8
A86: 其他审计事务支出 | B86: 3 | C86: 3 | D86: 3 | E86: =D86/B86*100 -> 100.0 | F86: =D86/C86*100 -> 100.0
A87: 海关事务 | B87: 149 | C87: 139 | D87: 152 | E87: =D87/B87*100 -> 102.0 | F87: =D87/C87*100 -> 109.4
A88: 行政运行 | B88: 142 | C88: 132 | D88: 145 | E88: =D88/B88*100 -> 102.1 | F88: =D88/C88*100 -> 109.8
A89: 一般行政管理事务
A90: 机关服务
A91: 缉私办案
A92: 口岸管理
A93: 信息化建设
A94: 海关关务
A95: 关税征管
A96: 海关监管
A97: 检验检疫
A98: 事业运行
A99: 其他海关事务支出 | B99: 7 | C99: 7 | D99: 7 | E99: =D99/B99*100 -> 100.0 | F99: =D99/C99*100 -> 100.0
A100: 纪检监察事务 | B100: 3,212 | C100: 3,014 | D100: 3,238 | E100: =D100/B100*100 -> 100.8 | F100: =D100/C100*100 -> 107.4
A101: 行政运行 | B101: 1,821 | C101: 1,665 | D101: 1,850 | E101: =D101/B101*100 -> 101.6 | F101: =D101/C101*100 -> 111.1
A102: 一般行政管理事务 | B102: 416 | C102: 406 | D102: 415 | E102: =D102/B102*100 -> 99.8 | F102: =D102/C102*100 -> 102.2
A103: 机关服务
A104: 大案要案查处 | B104: 499 | C104: 489 | D104: 500 | E104: =D104/B104*100 -> 100.2 | F104: =D104/C104*100 -> 102.2
A105: 派驻派出机构 | B105: 1 | C105: 1 | D105: 1 | E105: 100.0 | F105: 100.0
A106: 巡视工作 | B106: 218 | C106: 208 | D106: 215 | E106: 98.6 | F106: 103.4
A107: 事业运行 | B107: 207 | C107: 197 | D107: 205 | E107: 99.0 | F107: 104.1
A108: 其他纪检监察事务支出 | B108: 50 | C108: 48 | D108: 52 | E108: 104.0 | F108: 108.3
A109: 商贸事务 | B109: 3,358 | C109: 3,073 | D109: 3,341 | E109: 99.5 | F109: 108.7
A110: 行政运行 | B110: 2,530 | C110: 2,280 | D110: 2,510 | E110: 99.2 | F110: 110.1
A111: 一般行政管理事务
A112: 机关服务
A113: 对外贸易管理
A114: 国际经济合作
A115: 外资管理
A116: 国内贸易管理
A117: 招商引资 | B117: 358 | C117: 333 | D117: 360 | E117: =D117/B117*100 -> 100.6 | F117: =D117/C117*100 -> 108.1
A118: 事业运行 | B118: 464 | C118: 454 | D118: 465 | E118: =D118/B118*100 -> 100.2 | F118: =D118/C118*100 -> 102.4
A119: 其他商贸事务支出 | B119: 6 | C119: 6 | D119: 6 | E119: =D119/B119*100 -> 100.0 | F119: =D119/C119*100 -> 100.0
A120: 知识产权事务 | B120: 8 | C120: 8 | D120: 9 | E120: =D120/B120*100 -> 112.5 | F120: =D120/C120*100 -> 112.5
A121: 行政运行
A122: 一般行政管理事务
A123: 机关服务
A124: 专利审批
A125: 知识产权战略和规划
A126: 国际合作与交流
A127: 知识产权宏观管理
A128: 商标管理
A129: 原产地地理标志管理
A130: 事业运行
A131: 其他知识产权事务支出 | B131: 8 | C131: 8 | D131: 9 | E131: =D131/B131*100 -> 112.5 | F131: =D131/C131*100 -> 112.5
A132: 民族事务 | B132: 547 | C132: 523 | D132: 545 | E132: =D132/B132*100 -> 99.6 | F132: =D132/C132*100 -> 104.2
A133: 行政运行 | B133: 363 | C133: 353 | D133: 365 | E133: =D133/B133*100 -> 100.6 | F133: =D133/C133*100 -> 103.4
A134: 一般行政管理事务
A135: 机关服务
A136: 民族工作专项
A137: 事业运行 | B137: 119 | C137: 109 | D137: 115 | E137: =D137/B137*100 -> 96.6 | F137: =D137/C137*100 -> 105.5
A138: 其他民族事务支出 | B138: 65 | C138: 61 | D138: 65 | E138: 100.0 | F138: 106.6
A139: 港澳台事务 | B139: 0 | C139: 0 | D139: 0
A140: 档案事务 | B140: 633 | C140: 618 | D140: 639 | E140: 100.9 | F140: 103.4
A141: 行政运行 | B141: 551 | C141: 541 | D141: 557 | E141: 101.1 | F141: 103.0
A142: 一般行政管理事务
A143: 机关服务
A144: 档案馆 | B144: 2 | C144: 2 | D144: 2 | E144: 100.0 | F144: 100.0
A145: 其他档案事务支出 | B145: 80 | C145: 75 | D145: 80 | E145: 100.0 | F145: 106.7
A146: 民主党派及工商联事务 | B146: 11 | C146: 11 | D146: 12 | E146: 109.1 | F146: 109.1
A147: 行政运行
A148: 一般行政管理事务 | B148: 11 | C148: 11 | D148: 12 | E148: 109.1 | F148: 109.1
A149: 机关服务
A150: 参政议政
A151: 事业运行
A152: 其他民主党派及工商联事务支出
A153: 群众团体事务 | B153: 1,523 | C153: 1,493 | D153: 1,537 | E153: 100.9 | F153: 102.9
A154: 行政运行 | B154: 650 | C154: 640 | D154: 655 | E154: 100.8 | F154: 102.3
A155: 一般行政管理事务 | B155: 2 | C155: 2 | D155: 2 | E155: 100.0 | F155: 100.0
A156: 机关服务
A157: 工会事务
A158: 事业运行 | B158: 681 | C158: 671 | D158: 680 | E158: 99.9 | F158: 101.3
A159: 其他群众团体事务支出 | B159: 190 | C159: 180 | D159: 200 | E159: 105.3 | F159: 111.1
A160: 党委办公厅（室）及相关机构事务 | B160: 5,153 | C160: 4,978 | D160: 5,198 | E160: 100.9 | F160: 104.4
A161: 行政运行 | B161: 4,080 | C161: 3,935 | D161: 4,105 | E161: 100.6 | F161: 104.3
A162: 一般行政管理事务 | B162: 576 | C162: 566 | D162: 585 | E162: 101.6 | F162: 103.4
A163: 机关服务
A164: 专项业务 | B164: 207 | C164: 197 | D164: 210 | E164: 101.4 | F164: 106.6
A165: 事业运行 | B165: 287 | C165: 277 | D165: 295 | E165: 102.8 | F165: 106.5
A166: 其他党委办公厅（室）及相关机构事务支出 | B166: 3 | C166: 3 | D166: 3 | E166: 100.0 | F166: 100.0
A167: 组织事务 | B167: 2,010 | C167: 1,902 | D167: 2,097 | E167: 104.3 | F167: 110.3
A168: 行政运行 | B168: 1,380 | C168: 1,289 | D168: 1,452 | E168: 105.2 | F168: 112.6
A169: 一般行政管理事务 | B169: 345 | C169: 341 | D169: 355 | E169: 102.9 | F169: 104.1
A170: 机关服务
A171: 公务员事务
A172: 事业运行 | B172: 65 | C172: 62 | D172: 65 | E172: 100.0 | F172: 104.8
A173: 其他组织事务支出 | B173: 220 | C173: 210 | D173: 225 | E173: 102.3 | F173: 107.1
A174: 宣传事务 | B174: 2,634 | C174: 2,493 | D174: 2,661 | E174: 101.0 | F174: 106.7
A175: 行政运行 | B175: 829 | C175: 819 | D175: 820 | E175: 98.9 | F175: 100.1
A176: 一般行政管理事务
A177: 机关服务
A178: 宣传管理
A179: 事业运行 | B179: 315 | C179: 305 | D179: 321 | E179: 101.9 | F179: 105.2
A180: 其他宣传事务支出 | B180: 1,490 | C180: 1,369 | D180: 1,520 | E180: 102.0 | F180: 111.0
A181: 统战事务 | B181: 1,799 | C181: 1,655 | D181: 1,876 | E181: 104.3 | F181: 113.4
A182: 行政运行 | B182: 1,580 | C182: 1,456 | D182: 1,651 | E182: 104.5 | F182: 113.4
A183: 一般行政管理事务 | B183: 70 | C183: 60 | D183: 75 | E183: 107.1 | F183: 125.0
A184: 机关服务
A185: 宗教事务
A186: 华侨事务
A187: 事业运行 | B187: 149 | C187: 139 | D187: 150 | E187: 100.7 | F187: 107.9
A188: 其他统战事务支出
A189: 对外联络事务 | B189: 1 | C189: 1 | D189: 1 | E189: 100.0 | F189: 100.0
A190: 行政运行 | B190: 1 | C190: 1 | D190: 1 | E190: 100.0 | F190: 100.0
A191: 一般行政管理事务
A192: 机关服务
A193: 事业运行
A194: 其他对外联络事务支出
A195: 其他共产党事务支出（款） | B195: 448 | C195: 428 | D195: 448 | E195: 100.0 | F195: 104.7
A196: 行政运行 | B196: 312 | C196: 302 | D196: 315 | E196: 101.0 | F196: 104.3
A197: 一般行政管理事务 | B197: 7 | C197: 7 | D197: 8 | E197: 114.3 | F197: 114.3
A198: 机关服务
A199: 事业运行 | B199: 129 | C199: 119 | D199: 125 | E199: 96.9 | F199: 105.0
A200: 其他共产党事务支出（项）
... 928 more rows

Sheet 8.市本级一般公用预算收支平衡
A1: 2023年攀枝花市市本级一般公共预算收支预算平衡表
A2: 单位：万元
A3: 科目 | B3: 预 算 数 | C3: 科目 | D3: 预 算 数
A4: 一般公共预算收入 | B4: 370,000 | C4: 一般公共预算支出 | D4: 637,272
A5: 上级补助收入 | B5: 297,571 | C5: 补助下级支出 | D5: 168,947
A6: 返还性收入 | B6: 29,646 | C6: 返还性支出 | D6: 12,739
A7: 所得税基数返还收入 | B7: 9,428 | C7: 所得税基数返还支出 | D7: 3,865
A8: 成品油税费改革税收返还收入 | B8: 19,263 | C8: 成品油税费改革税收返还支出 | D8: 473
A9: 增值税税收返还收入 | B9: 28,459 | C9: 增值税税收返还支出 | D9: 6,058
A10: 消费税税收返还收入 | B10: 965 | C10: 消费税税收返还支出 | D10: 171
A11: 增值税“五五分享”税收返还收入 | B11: -15,973 | C11: 增值税“五五分享”税收返还支出 | D11: 7,499
A12: 其他返还性收入 | B12: -12,496 | C12: 其他返还性支出 | D12: -5,327
A13: 一般性转移支付收入 | B13: 264,611 | C13: 一般性转移支付支出 | D13: 155,550
A14: 均衡性转移支付收入 | B14: 134,942 | C14: 均衡性转移支付支出 | D14: 89,350
A15: 县级基本财力保障机制奖补资金收入 | B15: 12,137 | C15: 县级基本财力保障机制奖补资金支出 | D15: 12,137
A16: 结算补助收入 | B16: 29,342 | C16: 结算补助支出 | D16: 694
A17: 资源枯竭型城市转移支付补助收入 | B17: 7,220 | C17: 资源枯竭型城市转移支付补助支出 | D17: 7,220
A18: 企业事业单位划转补助收入 | B18: 22,315 | C18: 企业事业单位划转补助支出 | D18: 15,411
A19: 重点生态功能区转移支付收入 | B19: 7,561 | C19: 重点生态功能区转移支付支出 | D19: 3,600
A20: 固定数额补助收入 | B20: 27,838 | C20: 固定数额补助支出 | D20: 12,960
A21: 农林水共同财政事权转移支付收入 | B21: 176 | C21: 农林水共同财政事权转移支付支出
A22: 交通运输共同财政事权转移支付收入 | B22: 531 | C22: 交通运输共同财政事权转移支付支出
A23: 增值税留抵退税转移支付收入 | B23: 20,895 | C23: 增值税留抵退税转移支付支出 | D23: 13,152
A24: 其他退税减税降费转移支付收入 | B24: 1,309 | C24: 其他退税减税降费转移支付支出 | D24: 681
A25: 其他一般性转移支付收入 | B25: 345 | C25: 其他一般性转移支付支出 | D25: 345
A26: 专项转移支付收入 | B26: 3,314 | C26: 专项转移支付支出 | D26: 658
A27: 下级上解收入 | B27: 191,950 | C27: 上解上级支出 | D27: 87,520
A28: 体制上解收入 | C28: 体制上解支出
A29: 专项上解收入 | B29: 191,950 | C29: 专项上解支出 | D29: 87,520
A30: 上年结余 | B30: 48,000
A31: 调入资金 | B31: 840 | C31: 调出资金
A32: 从政府性基金预算调入
A33: 从国有资本经营预算调入 | B33: 840
A34: 从其他资金调入
A35: 债务收入 | C35: 债务还本支出 | D35: 10,457
A36: 地方政府债务收入 | C36: 地方政府一般债务还本支出 | D36: 10,457
A37: 一般债务收入 | C37: 地方政府一般债券还本支出 | D37: 6,389
A38: 地方政府一般债券收入 | C38: 地方政府向外国政府借款还本支出 | D38: 4,068
A39: 地方政府向外国政府借款收入 | C39: 地方政府向国际组织借款还本支出
A40: 地方政府向国际组织借款收入 | C40: 地方政府其他一般债务还本支出
A41: 地方政府其他一般债务收入
A42: 债务转贷收入 | C42: 债务转贷支出
A43: 地方政府一般债务转贷收入 | C43: 地方政府一般债券转贷支出
A44: 地方政府一般债券转贷收入 | C44: 地方政府向外国政府借款转贷支出
A45: 地方政府向外国政府借款转贷收入 | C45: 地方政府向国际组织借款转贷支出
A46: 地方政府向国际组织借款转贷收入 | C46: 地方政府其他一般债务转贷支出
A47: 地方政府其他一般债务转贷收入
A48: 动用预算稳定调节基金 | C48: 安排预算稳定调节基金
A49: 接受其他地区援助收入 | C49: 援助其他地区支出 | D49: 4,165
C50: 年终结余
A51: 收 入 总 计 | B51: 908,361 | C51: 支 出 总 计 | D51: 908,361

Sheet 9.市本级经济分类科目
A1: 2023年攀枝花市市本级一般公共预算 经济分类科目支出预算表
E2: 单位：万元，%
A3: 科 目 | B3: 上年预算数 | C3: 上年执行数 | D3: 预 算 数 | E3: 为上年预算 | F3: 为上年执行
A4: 机关工资福利支出 | B4: 162,140 | C4: 154,966 | D4: =D5+D7+D6+D8 -> 162,700 | E4: =D4/B4*100 -> 100.3 | F4: =D4/C4*100 -> 105.0
A5: 工资奖金津补贴 | B5: 125,000 | C5: 119,566 | D5: 125,000 | E5: 100.0 | F5: 104.5
A6: 社会保障缴费 | B6: 21,000 | C6: 20,147 | D6: 21,500 | E6: 102.4 | F6: 106.7
A7: 住房公积金 | B7: 8,140 | C7: 7,841 | D7: 8,200 | E7: 100.7 | F7: 104.6
A8: 其他工资福利支出 | B8: 8,000 | C8: 7,412 | D8: 8,000 | E8: 100.0 | F8: 107.9
A9: 机关商品和服务支出 | B9: 143,110 | C9: 116,427 | D9: =SUM(D10:D19) -> 141,350 | E9: 98.8 | F9: 121.4
A10: 办公经费 | B10: 16,000 | C10: 15,214 | D10: 18,500 | E10: 115.6 | F10: 121.6
A11: 会议费 | B11: 278 | C11: 278 | D11: 300 | E11: 107.9 | F11: 107.9
A12: 培训费 | B12: 50 | C12: 50 | D12: 50 | E12: 100.0 | F12: 100.0
A13: 专用材料购置费
A14: 委托业务费 | B14: 550 | C14: 540 | D14: 600 | E14: 109.1 | F14: 111.1
A15: 公务接待费 | B15: 500 | C15: 500 | D15: 500 | E15: 100.0 | F15: 100.0
A16: 因公出国（境）费用
A17: 公务用车运行维护费 | B17: 1,358 | C17: 1,358 | D17: 1,400 | E17: =D17/B17*100 -> 103.1 | F17: =D17/C17*100 -> 103.1
A18: 维修（护）费
A19: 其他商品和服务支出 | B19: 124,374 | C19: 98,487 | D19: 120,000 | E19: =D19/B19*100 -> 96.5 | F19: =D19/C19*100 -> 121.8
A20: 机关资本性支出（一） | B20: 36,210 | C20: 36,297 | D20: =SUM(D21:D27) -> 39,000 | E20: =D20/B20*100 -> 107.7 | F20: =D20/C20*100 -> 107.4
A21: 房屋建筑物购建
A22: 基础设施建设 | B22: 8,210 | C22: 8,210 | D22: 9,000 | E22: =D22/B22*100 -> 109.6 | F22: =D22/C22*100 -> 109.6
A23: 公务用车购置
A24: 土地征迁补偿和安置支出
A25: 设备购置
A26: 大型修缮
A27: 其他资本性支出 | B27: 28,000 | C27: 28,087 | D27: 30,000 | E27: =D27/B27*100 -> 107.1 | F27: =D27/C27*100 -> 106.8
A28: 机关资本性支出（二）
A29: 房屋建筑物购建
A30: 基础设施建设
A31: 公务用车购置
A32: 设备购置
A33: 大型修缮
A34: 其他资本性支出
A35: 对事业单位经常性补助 | B35: 155,000 | C35: 156,004 | D35: =D36+D37+D38 -> 164,500 | E35: =D35/B35*100 -> 106.1 | F35: =D35/C35*100 -> 105.4
A36: 工资福利支出 | B36: 120,000 | C36: 120,547 | D36: 125,000 | E36: 104.2 | F36: 103.7
A37: 商品和服务支出 | B37: 31,500 | C37: 31,457 | D37: 32,000 | E37: 101.6 | F37: 101.7
A38: 其他对事业单位补助 | B38: 3,500 | C38: 4,000 | D38: 7,500 | E38: 214.3 | F38: 187.5
A39: 对事业单位资本性补助 | B39: 4,500 | C39: 4,950 | D39: =D40+D41 -> 5,500 | E39: 122.2 | F39: 111.1
A40: 资本性支出（一） | B40: 500 | C40: 450 | D40: 500 | E40: 100.0 | F40: 111.1
A41: 资本性支出（二） | B41: 4,000 | C41: 4,500 | D41: 5,000 | E41: 125.0 | F41: 111.1
A42: 对企业补助 | B42: 1,150 | C42: 1,147 | D42: =D43+D44+D45 -> 1,250 | E42: 108.7 | F42: 109.0
A43: 费用补贴 | B43: 300 | C43: 300 | D43: 350 | E43: 116.7 | F43: 116.7
A44: 利息补贴 | B44: 850 | C44: 847 | D44: 900 | E44: 105.9 | F44: 106.3
A45: 其他对企业补助
A46: 对企业资本性支出 | B46: 10,000 | C46: 10,000 | D46: 12,000 | E46: 120.0 | F46: 120.0
A47: 对企业资本性支出（一）
A48: 对企业资本性支出（二） | B48: 10,000 | C48: 10,000 | D48: 12,000 | E48: =D48/B48*100 -> 120.0 | F48: =D48/C48*100 -> 120.0
A49: 对个人和家庭的补助 | B49: 32,600 | C49: 31,958 | D49: =D50+D51+D52+D53+D54 -> 35,500 | E49: 108.9 | F49: 111.1
A50: 社会福利和救助 | B50: 1,500 | C50: 1,452 | D50: 1,500 | E50: 100.0 | F50: 103.3
A51: 助学金 | B51: 3,600 | C51: 3,541 | D51: 4,500 | E51: 125.0 | F51: 127.1
A52: 个人农业生产补贴
A53: 离退休费 | B53: 21,500 | C53: 21,548 | D53: 23,500 | E53: 109.3 | F53: 109.1
A54: 其他对个人和家庭补助 | B54: 6,000 | C54: 5,417 | D54: 6,000 | E54: 100.0 | F54: 110.8
A55: 对社会保障基金补助 | B55: 41,858 | C55: 39,985 | D55: =D56+D57+D58 -> 40,762 | E55: 97.4 | F55: 101.9
A56: 对社会保险基金补助 | B56: 41,858 | C56: 39,985 | D56: 40,762 | E56: 97.4 | F56: 101.9
A57: 补充全国社会保障基金
A58: 对机关事业单位职业年金的补助
A59: 债务利息及费用支出 | B59: 34,524 | C59: 31,906 | D59: =D60+D61+D62+D63 -> 34,650 | E59: =D59/B59*100 -> 100.4 | F59: =D59/C59*100 -> 108.6
A60: 国内债务付息 | B60: 28,294 | C60: 26,153 | D60: 28,500 | E60: 100.7 | F60: 109.0
A61: 国外债务付息 | B61: 6,080 | C61: 5,603 | D61: 6,000 | E61: 98.7 | F61: 107.1
A62: 国内债务发行费用 | B62: 150 | C62: 150 | D62: 150 | E62: 100.0 | F62: 100.0
A63: 国外债务发行费用
A64: 其他支出 | B64: 60 | C64: 60 | D64: =D65+D66+D67+D68 -> 60 | E64: =D64/B64*100 -> 100.0 | F64: =D64/C64*100 -> 100.0
A65: 赠与
A66: 国家赔偿费用支出
A67: 对民间非营利组织和群众性自治组织补贴
A68: 其他支出 | B68: 60 | C68: 60 | D68: 60 | E68: 100.0 | F68: 100.0
A69: 一般公共预算支出 | B69: 621,152 | C69: 583,700 | D69: =D64+D59+D49+D46+D42+D39+D35+D28+D20+D9+D4+D55 -> 637,272 | E69: 102.6 | F69: 109.2

Sheet 10.市本级经济分类科目（基本）支出
A1: 2023年攀枝花市市本级一般公共预算 经济分类科目（基本）支出预算表
E2: 单位：万元，%
A3: 科 目 | B3: 上年预算数 | C3: 上年执行数 | D3: 预 算 数 | E3: 为上年预算 | F3: 为上年执行
A4: 机关工资福利支出 | B4: 126,400 | C4: 126,366 | D4: =D5+D7+D6+D8 -> 128,200 | E4: =D4/B4*100 -> 101.4 | F4: =D4/C4*100 -> 101.5
A5: 工资奖金津补贴 | B5: 95,000 | C5: 95,410 | D5: 96,500 | E5: 101.6 | F5: 101.1
A6: 社会保障缴费 | B6: 16,000 | C6: 15,874 | D6: 16,000 | E6: 100.0 | F6: 100.8
A7: 住房公积金 | B7: 8,200 | C7: 7,841 | D7: 8,200 | E7: 100.0 | F7: 104.6
A8: 其他工资福利支出 | B8: 7,200 | C8: 7,241 | D8: 7,500 | E8: 104.2 | F8: 103.6
A9: 机关商品和服务支出 | B9: 22,000 | C9: 21,296 | D9: =SUM(D10:D19) -> 24,380 | E9: 110.8 | F9: 114.5
A10: 办公经费 | B10: 16,000 | C10: 15,214 | D10: 16,500 | E10: 103.1 | F10: 108.5
A11: 会议费
A12: 培训费
A13: 专用材料购置费
A14: 委托业务费 | B14: 20 | C14: 20 | D14: 25 | E14: 125.0 | F14: 125.0
A15: 公务接待费 | B15: 480 | C15: 480 | D15: 480 | E15: 100.0 | F15: 100.0
A16: 因公出国（境）费用
A17: 公务用车运行维护费 | B17: 1,300 | C17: 1,324 | D17: 1,375 | E17: =D17/B17*100 -> 105.8 | F17: =D17/C17*100 -> 103.9
A18: 维修（护）费
A19: 其他商品和服务支出 | B19: 4,200 | C19: 4,258 | D19: 6,000 | E19: 142.9 | F19: 140.9
A20: 机关资本性支出（一）
A21: 房屋建筑物购建
A22: 基础设施建设
A23: 公务用车购置
A24: 土地征迁补偿和安置支出
A25: 设备购置
A26: 大型修缮
A27: 其他资本性支出
A28: 机关资本性支出（二）
A29: 房屋建筑物购建
A30: 基础设施建设
A31: 公务用车购置
A32: 设备购置
A33: 大型修缮
A34: 其他资本性支出
A35: 对事业单位经常性补助 | B35: 117,000 | C35: 117,512 | D35: =D36+D37+D38 -> 122,600 | E35: =D35/B35*100 -> 104.8 | F35: =D35/C35*100 -> 104.3
A36: 工资福利支出 | B36: 100,000 | C36: 100,471 | D36: 105,000 | E36: 105.0 | F36: 104.5
A37: 商品和服务支出 | B37: 14,500 | C37: 14,571 | D37: 15,000 | E37: 103.4 | F37: 102.9
A38: 其他对事业单位补助 | B38: 2,500 | C38: 2,470 | D38: 2,600 | E38: 104.0 | F38: 105.3
A39: 对事业单位资本性补助
A40: 资本性支出（一）
A41: 资本性支出（二）
A42: 对企业补助
A43: 费用补贴
A44: 利息补贴
A45: 其他对企业补助
A46: 对企业资本性支出
A47: 对企业资本性支出（一）
A48: 对企业资本性支出（二）
A49: 对个人和家庭的补助 | B49: 23,200 | C49: 22,811 | D49: =D50+D51+D52+D53+D54 -> 23,775 | E49: =D49/B49*100 -> 102.5 | F49: =D49/C49*100 -> 104.2
A50: 社会福利和救助 | B50: 1,100 | C50: 1,047 | D50: 1,375 | E50: 125.0 | F50: 131.3
A51: 助学金 | B51: 3,600 | C51: 3,541 | D51: 4,000 | E51: 111.1 | F51: 113.0
A52: 个人农业生产补贴
A53: 离退休费 | B53: 17,000 | C53: 16,745 | D53: 16,400 | E53: =D53/B53*100 -> 96.5 | F53: =D53/C53*100 -> 97.9
A54: 其他对个人和家庭补助 | B54: 1,500 | C54: 1,478 | D54: 2,000 | E54: =D54/B54*100 -> 133.3 | F54: =D54/C54*100 -> 135.3
A55: 对社会保障基金补助
A56: 对社会保险基金补助
A57: 补充全国社会保障基金
A58: 对机关事业单位职业年金的补助
A59: 债务利息及费用支出
A60: 国内债务付息
A61: 国外债务付息
A62: 国内债务发行费用
A63: 国外债务发行费用
A64: 其他支出
A65: 赠与
A66: 国家赔偿费用支出
A67: 对民间非营利组织和群众性自治组织补贴
A68: 其他支出
A69: 一般公共预算支出 | B69: 288,600 | C69: 287,985 | D69: =D64+D59+D49+D46+D42+D39+D35+D28+D20+D9+D4+D55 -> 298,955 | E69: =D69/B69*100 -> 103.6 | F69: =D69/C69*100 -> 103.8

Sheet 11.市对区转移支付
A1: 2023年市对区转移支付（分项目）补助预算表
B2: 单位：万元
A3: 科 目 | B3: 执行数
B4: 合计 | C4: 东区 | D4: 西区 | E4: 仁和区
A5: 补助下级支出 | B5: =B6+B13+B24 -> 168,974 | C5: =C6+C13+C24 -> 52,501 | D5: =D6+D13+D24 -> 57,572 | E5: =E6+E13+E24 -> 58,901
A6: 返还性支出 | B6: 12,739 | C6: 1,152 | D6: 2,504 | E6: 9,083
A7: 所得税基数返还支出 | B7: 3,865 | C7: 3,970 | D7: 1,040 | E7: -1,145
A8: 成品油税费改革税收返还支出 | B8: 473 | C8: 184 | D8: 97 | E8: 192
A9: 增值税税收返还支出 | B9: 6,058 | C9: 23 | D9: 1,862 | E9: 4,173
A10: 消费税税收返还支出 | B10: 171 | C10: 3 | D10: 157 | E10: 11
A11: 增值税“五五分享”税收返还支出 | B11: 7,499 | C11: 2,327 | D11: -14 | E11: 5,186
A12: 其他返还性支出 | B12: -5,327 | C12: -5,355 | D12: -638 | E12: 666
A13: 一般性转移支付支出 | B13: =SUM(B14:B23) -> 155,550 | C13: =SUM(C14:C23) -> 51,349 | D13: =SUM(D14:D23) -> 55,068 | E13: =SUM(E14:E23) -> 49,133
A14: 均衡性转移支付支出 | B14: =C14+D14+E14 -> 89,350 | C14: 27,723 | D14: 34,070 | E14: 27,557
A15: 县级基本财力保障机制奖补资金支出 | B15: =C15+D15+E15 -> 12,137 | C15: 3,677 | D15: 5,266 | E15: 3,194
A16: 结算补助支出 | B16: 694 | C16: -700 | D16: 520 | E16: 874
A17: 资源枯竭型城市转移支付补助支出 | B17: 7,220 | C17: 3,000 | D17: 2,344 | E17: 1,876
A18: 企业事业单位划转补助支出 | B18: 15,411 | C18: 11,758 | D18: 4,049 | E18: -396
A19: 重点生态功能区转移支付支出 | B19: 3,600 | C19: 1,200 | D19: 1,200 | E19: 1,200
A20: 固定数额补助支出 | B20: 12,960 | C20: 3,100 | D20: 1,571 | E20: 8,289
A21: 增值税留抵退税转移支付支出 | B21: 13,152 | C21: =130+1245 -> 1,375 | D21: =76+5864 -> 5,940 | E21: =675+5162 -> 5,837
A22: 其他退税减税降费转移支付支出 | B22: 681 | C22: 150 | D22: 59 | E22: 472
A23: 其他一般性转移支付支出 | B23: 345 | C23: 66 | D23: 49 | E23: 230
A24: 专项转移支付支出 | B24: =B25 -> 685 | E24: =E25 -> 685
A25: 农村综合转移支付补助 | B25: =C25+D25+E25 -> 685 | E25: 685

Sheet 12.全市政府性基金收入
A1: 2023年攀枝花市政府性基金预算收入预算表
E2: 单位:万元，%
A3: 科 目 | B3: 上年预算数 | C3: 上年执行数 | D3: 预 算 数 | E3: 为上年预算 | F3: 为上年执行
A4: 国有土地收益基金收入 | B4: 14,510 | C4: 9,740 | D4: 14,590 | E4: 100.6 | F4: 149.8
A5: 农业土地开发资金收入 | B5: 704 | C5: 1,447 | D5: 2,105 | E5: 299.0 | F5: 145.5
A6: 国有土地使用权出让收入 | B6: 311,070 | C6: 307,788 | D6: 350,955 | E6: 112.8 | F6: 114.0
A7: 城市基础设施配套费收入 | B7: 10,937 | C7: 15,437 | D7: 8,050 | E7: 73.6 | F7: 52.1
A8: 污水处理费收入 | B8: 6,500 | C8: 9,800 | D8: 5,500 | E8: 84.6 | F8: 56.1
A9: 其他政府性基金收入 | B9: 1,500 | C9: 10,709
A10: 政府性基金预算收入 | B10: 345,221 | C10: 354,921 | D10: 381,200 | E10: 110.4 | F10: 107.4

Sheet 13.全市政府性基金支出
A1: 2023年攀枝花市政府性基金预算支出预算表
D2: 单位:万元，%
A3: 科 目 | B3: 上年预算数 | C3: 上年执行数 | D3: 预 算 数 | E3: 为上年预算 | F3: 为上年执行
A4: 科学技术支出 | B4: 0 | C4: 0 | D4: 0
A5: 核电站乏燃料处理处置基金支出 | B5: 0 | C5: 0 | D5: 0
A6: 文化旅游体育与传媒支出 | B6: 61 | C6: 67
A7: 国家电影事业发展专项资金安排的支出 | B7: 61 | C7: 67
A8: 资助国产影片放映 | B8: 0 | C8: 0
A9: 资助影院建设 | B9: 58 | C9: 50
A10: 资助少数民族语电影译制 | B10: 0 | C10: 0
A11: 其他国家电影事业发展专项资金支出 | B11: 3 | C11: 17
A12: 旅游发展基金支出 | B12: 0 | C12: 0
A13: 国家电影事业发展专项资金对应专项债务收入安排的支出 | B13: 0 | C13: 0
A14: 社会保障和就业支出 | B14: 4,620 | C14: 1,552 | D14: 2,793 | E14: 60.5 | F14: 180.0
A15: 大中型水库移民后期扶持基金支出 | B15: 4,620 | C15: 1,552 | D15: 2,793 | E15: 60.5 | F15: 180.0
A16: 移民补助 | B16: 2,159 | C16: 1,296 | D16: 379 | E16: 17.6 | F16: 29.3
A17: 基础设施建设和经济发展 | B17: 2,461 | C17: 256 | D17: 2,414 | E17: 98.1
A18: 其他大中型水库移民后期扶持基金支出 | B18: 0 | C18: 0 | D18: 0
A19: 小型水库移民扶助基金安排的支出 | B19: 0 | C19: 0 | D19: 0
A20: 小型水库移民扶助基金对应专项债务收入安排的支出 | B20: 0 | C20: 0 | D20: 0
A21: 节能环保支出 | B21: 0 | C21: 0 | D21: 0
A22: 可再生能源电价附加收入安排的支出 | B22: 0 | C22: 0 | D22: 0
A23: 废弃电器电子产品处理基金支出 | B23: 0 | C23: 0 | D23: 0
A24: 城乡社区支出 | B24: 330,416 | C24: 318,532 | D24: 278,809 | E24: 84.4 | F24: 87.5
A25: 国有土地使用权出让收入安排的支出 | B25: 300,001 | C25: 283,365 | D25: 263,969 | E25: 88.0 | F25: 93.2
A26: 征地和拆迁补偿支出 | B26: 17,377 | C26: 17,457 | D26: 8,579 | E26: 49.4 | F26: 49.1
A27: 土地开发支出 | B27: 230,659 | C27: 215,647 | D27: 208,492 | E27: 90.4 | F27: 96.7
A28: 城市建设支出 | B28: 82 | C28: 82 | D28: 0 | E28: 0.0 | F28: 0.0
A29: 农业生产发展支出 | B29: 760 | C29: 807 | D29: 435 | E29: 57.2 | F29: 53.9
A30: 农村社会事业支出 | B30: 1,638 | C30: 1,638 | D30: 2,000 | E30: 122.1 | F30: 122.1
A31: 农业农村生态环境支出 | B31: 273 | C31: 273 | D31: 0 | E31: 0.0 | F31: 0.0
A32: 农村基础设施建设支出 | B32: 8,657 | C32: 8,412 | D32: 7,525 | E32: 86.9 | F32: 89.5
A33: 补助被征地农民支出 | B33: 9,090 | C33: 9,090 | D33: 9,854 | E33: 108.4 | F33: 108.4
A34: 土地出让业务支出 | B34: 0 | D34: 0
A35: 廉租住房支出 | B35: 0 | D35: 0
A36: 支付破产或改制企业职工安置费 | B36: 0 | D36: 0
A37: 棚户区改造支出 | B37: 12,053 | C37: 10,547 | D37: 7,584 | E37: 62.9 | F37: 71.9
A38: 公共租赁住房支出 | B38: 0 | C38: 0 | D38: 0
A39: 保障性住房租金补贴 | B39: 0 | C39: 0 | D39: 0
A40: 其他国有土地使用权出让收入安排的支出 | B40: 19,412 | C40: 19,412 | D40: 19,500 | E40: 100.5 | F40: 100.5
A41: 国有土地收益基金安排的支出 | B41: 1,010 | C41: 1,010 | D41: 1,290 | E41: 127.7 | F41: 127.7
A42: 征地和拆迁补偿支出 | B42: 1,010 | C42: 1,010 | D42: 1,290 | E42: 127.7 | F42: 127.7
A43: 土地开发支出 | B43: 0 | C43: 0 | D43: 0
A44: 其他国有土地收益基金支出 | B44: 0 | C44: 0 | D44: 0
A45: 农业土地开发资金安排的支出 | B45: 127 | C45: 127 | E45: 0.0 | F45: 0.0
A46: 城市基础设施配套费安排的支出 | B46: 14,383 | C46: 15,835 | D46: 8,050 | E46: 56.0 | F46: 50.8
A47: 城市公共设施 | B47: 149 | C47: 298 | D47: 200 | E47: 134.2 | F47: 67.1
A48: 城市环境卫生 | B48: 5,000 | C48: 4,690 | D48: 1,318 | E48: 26.4 | F48: 28.1
A49: 公有房屋 | B49: 0 | C49: 0 | D49: 0
A50: 城市防洪 | B50: 0 | C50: 0 | D50: 0
A51: 其他城市基础设施配套费安排的支出 | B51: 9,234 | C51: 10,847 | D51: 6,532 | E51: 70.7 | F51: 60.2
A52: 污水处理费安排的支出 | B52: 6,000 | C52: 9,300 | D52: 5,500 | E52: 91.7 | F52: 59.1
A53: 污水处理设施建设和运营 | B53: 0 | C53: 0 | D53: 0
A54: 代征手续费 | B54: 0 | C54: 0 | D54: 0
A55: 其他污水处理费安排的支出 | B55: 6,000 | C55: 9,300 | D55: 5,500 | E55: 91.7 | F55: 59.1
A56: 土地储备专项债券收入安排的支出 | B56: 0 | C56: 0 | D56: 0
A57: 棚户区改造专项债券收入安排的支出 | B57: 8,895 | C57: 8,895 | D57: 0
A58: 征地和拆迁补偿支出 | B58: 0 | C58: 0 | D58: 0
A59: 土地开发支出 | B59: 0 | C59: 0 | D59: 0
A60: 其他棚户区改造专项债券收入安排的支出 | B60: 8,895 | C60: 8,895 | D60: 0 | E60: 0.0 | F60: 0.0
A61: 城市基础设施配套费对应专项债务收入安排的支出 | B61: 0 | C61: 0 | D61: 0
A62: 污水处理费对应专项债务收入安排的支出 | B62: 0 | C62: 0 | D62: 0
A63: 国有土地使用权出让收入对应专项债务收入安排的支出 | B63: 0 | C63: 0 | D63: 0
A64: 农林水支出 | B64: 130 | C64: 122 | D64: 90 | E64: 69.2 | F64: 73.8
A65: 大中型水库库区基金安排的支出 | B65: 130 | C65: 122 | D65: 90 | E65: 69.2 | F65: 73.8
A66: 基础设施建设和经济发展 | B66: 40 | C66: 38 | E66: 0.0 | F66: 0.0
A67: 解决移民遗留问题 | B67: 0 | C67: 0 | D67: 0
A68: 库区防护工程维护 | B68: 0 | C68: 0 | D68: 0
A69: 其他大中型水库库区基金支出 | B69: 90 | C69: 84 | D69: 90 | E69: 100.0 | F69: 107.1
A70: 三峡水库库区基金支出 | B70: 0 | C70: 0 | D70: 0
A71: 国家重大水利工程建设基金安排的支出 | B71: 0 | C71: 0 | D71: 0
A72: 大中型水库库区基金对应专项债务收入安排的支出 | B72: 0 | C72: 0 | D72: 0
A73: 国家重大水利工程建设基金对应专项债务收入安排的支出 | B73: 0 | C73: 0 | D73: 0
A74: 交通运输支出 | B74: 0 | C74: 0 | D74: 0
A75: 海南省高等级公路车辆通行附加费安排的支出 | B75: 0 | C75: 0 | D75: 0
A76: 车辆通行费安排的支出 | B76: 0 | C76: 0 | D76: 0
A77: 港口建设费安排的支出 | B77: 0 | C77: 0 | D77: 0
A78: 铁路建设基金支出 | B78: 0 | C78: 0 | D78: 0
A79: 船舶油污损害赔偿基金支出 | B79: 0 | C79: 0 | D79: 0
A80: 民航发展基金支出 | B80: 0 | C80: 0 | D80: 0
A81: 海南省高等级公路车辆通行附加费对应专项债务收入安排的支出 | B81: 0 | C81: 0 | D81: 0
A82: 政府收费公路专项债券收入安排的支出 | B82: 0 | C82: 0 | D82: 0
A83: 车辆通行费对应专项债务收入安排的支出 | B83: 0 | C83: 0 | D83: 0
A84: 港口建设费对应专项债务收入安排的支出 | B84: 0 | C84: 0 | D84: 0
A85: 资源勘探工业信息等支出 | B85: 0 | C85: 0 | D85: 0
A86: 农网还贷资金支出 | B86: 0 | C86: 0 | D86: 0
A87: 金融支出 | B87: 0 | C87: 0 | D87: 0
A88: 金融调控支出 | B88: 0 | C88: 0 | D88: 0
A89: 其他支出 | B89: 160,787 | C89: 161,380 | D89: 226
A90: 其他政府性基金及对应专项债务收入安排的支出 | B90: 159,000 | C90: 159,000 | D90: 0 | E90: 0.0 | F90: 0.0
A91: 其他政府性基金安排的支出 | B91: 0 | D91: 0
A92: 其他地方自行试点项目收益专项债券收入安排的支出 | B92: 159,000 | C92: 159,000
A93: 其他政府性基金债务收入安排的支出 | B93: 0 | C93: 0 | D93: 0
A94: 彩票发行销售机构业务费安排的支出 | B94: 0 | C94: 0 | D94: 0
A95: 彩票公益金安排的支出 | B95: 1,787 | C95: 2,380 | D95: 226
A96: 用于补充全国社会保障基金的彩票公益金支出 | B96: 0 | C96: 0 | D96: 0
A97: 用于社会福利的彩票公益金支出 | B97: 920 | C97: 962 | D97: 73
A98: 用于体育事业的彩票公益金支出 | B98: 275 | C98: 778 | D98: 92
A99: 用于教育事业的彩票公益金支出 | B99: 0 | C99: 0 | D99: 0
A100: 用于红十字事业的彩票公益金支出 | B100: 0 | C100: 0 | D100: 0
A101: 用于残疾人事业的彩票公益金支出 | B101: 124 | C101: 162 | D101: 0
A102: 用于文化事业的彩票公益金支出 | B102: 0 | C102: 0 | D102: 0
A103: 用于扶贫的彩票公益金支出 | B103: 0 | C103: 0 | D103: 0
A104: 用于法律援助的彩票公益金支出 | B104: 0 | C104: 0 | D104: 0
A105: 用于城乡医疗救助的彩票公益金支出 | B105: 138 | C105: 148 | D105: 43
A106: 用于其他社会公益事业的彩票公益金支出 | B106: 330 | C106: 330 | D106: 18
A107: 债务付息支出 | B107: 27,696 | C107: 29,985 | D107: 28,160 | E107: 101.7 | F107: 93.9
A108: 地方政府专项债务付息支出 | B108: 27,696 | C108: 29,985 | D108: 28,160 | E108: 101.7 | F108: 93.9
A109: 海南省高等级公路车辆通行附加费债务付息支出 | B109: 0 | C109: 0 | D109: 0
A110: 港口建设费债务付息支出 | B110: 0 | C110: 0 | D110: 0
A111: 国家电影事业发展专项资金债务付息支出 | B111: 0 | C111: 0 | D111: 0
A112: 国有土地使用权出让金债务付息支出 | B112: 18,169 | C112: 20,458 | D112: 19,306 | E112: 106.3 | F112: 94.4
A113: 国有土地收益基金债务付息支出 | B113: 0 | C113: 0 | D113: 0
A114: 农业土地开发资金债务付息支出 | B114: 0 | C114: 0 | D114: 0
A115: 大中型水库库区基金债务付息支出 | B115: 0 | C115: 0 | D115: 0
A116: 城市基础设施配套费债务付息支出 | B116: 0 | C116: 0 | D116: 0
A117: 小型水库移民扶助基金债务付息支出 | B117: 0 | C117: 0 | D117: 0
A118: 国家重大水利工程建设基金债务付息支出 | B118: 0 | C118: 0 | D118: 0
A119: 车辆通行费债务付息支出 | B119: 0 | C119: 0 | D119: 0
A120: 污水处理费债务付息支出 | B120: 0 | C120: 0 | D120: 0
A121: 土地储备专项债券付息支出 | B121: 5,546 | C121: 5,546 | D121: 5,735 | E121: 103.4 | F121: 103.4
A122: 政府收费公路专项债券付息支出 | B122: 0 | C122: 0 | D122: 0
A123: 棚户区改造专项债券付息支出 | B123: 1,343 | C123: 1,343 | D123: 0 | E123: 0.0 | F123: 0.0
A124: 其他地方自行试点项目收益专项债券付息支出 | B124: 2,638 | C124: 2,638 | D124: 3,119 | E124: 118.2 | F124: 118.2
A125: 其他政府性基金债务付息支出 | B125: 0 | C125: 0 | D125: 0
A126: 债务发行费用支出 | B126: 250 | C126: 250 | D126: 74 | E126: 29.6 | F126: 29.6
A127: 地方政府专项债务发行费用支出 | B127: 250 | C127: 250 | D127: 74 | E127: 29.6 | F127: 29.6
A128: 国家电影事业发展专项资金债务发行费用支出 | B128: 0 | C128: 0 | D128: 0
A129: 国有土地使用权出让金债务发行费用支出 | B129: 4 | C129: 4 | D129: 0
A130: 国有土地收益基金债务发行费用支出 | B130: 0 | C130: 0 | D130: 0
A131: 农业土地开发资金债务发行费用支出 | B131: 0 | C131: 0 | D131: 0
A132: 其他地方自行试点项目收益专项债券发行费用支出 | B132: 246 | C132: 246 | D132: 74 | E132: 30.1 | F132: 30.1
A133: 其他政府性基金债务发行费用支出 | B133: 0 | C133: 0 | D133: 0
A134: 抗疫特别国债安排的支出 | B134: 0 | C134: 0 | D134: 0
A135: 基础设施建设 | B135: 0 | C135: 0 | D135: 0
A136: 抗疫相关支出 | B136: 0 | C136: 0 | D136: 0
A137: 政府性基金预算支出 | B137: 523,960 | C137: 511,889 | D137: 310,152 | E137: 59.2 | F137: 60.6

Sheet 14.全市政府性基金收支平衡
A1: 2023年攀枝花市政府性基金预算收支预算平衡表
A2: 单位：万元
A3: 科 目 | B3: 预 算 数 | C3: 科 目 | D3: 预 算 数
A4: 政府性基金预算收入 | B4: 381,200 | C4: 政府性基金预算支出 | D4: 310,152
A5: 政府性基金预算上级补助收入 | C5: 政府性基金预算补助下级支出
A6: 政府性基金预算下级上解收入 | C6: 政府性基金预算上解上级支出
A7: 政府性基金预算上年结余 | B7: 21,771
A8: 政府性基金预算调入资金 | C8: 政府性基金预算调出资金
A9: 一般公共预算调入
A10: 其他调入资金
A11: 债务收入 | C11: 债务还本支出 | D11: 92,819
C12: 地方政府专项债务还本支出 | D12: 92,819
A13: 债务转贷收入 | C13: 债务转贷支出
A14: 地方政府专项债务转贷收入
C15: 政府性基金预算年终结余
A16: 收 入 总 计 | B16: 402,971 | C16: 支 出 总 计 | D16: 402,971

Sheet 15.市本级政府性基金收入
A1: 2023年攀枝花市市本级政府性基金预算收入预算表
E2: 单位:万元，%
A3: 科目 | B3: 上年预算数 | C3: 上年执行数 | D3: 预 算 数 | E3: 为上年预算 | F3: 为上年执行
A4: 国有土地收益基金收入 | B4: 13,500 | C4: 8,730 | D4: 8,300 | E4: =D4/B4*100 -> 61.5 | F4: =D4/C4*100 -> 95.1
A5: 农业土地开发资金收入 | B5: 700 | C5: 1,443 | D5: 1,300 | E5: =D5/B5*100 -> 185.7 | F5: =D5/C5*100 -> 90.1
A6: 国有土地使用权出让收入 | B6: 145,800 | C6: 142,518 | D6: 97,900 | E6: 67.1 | F6: 68.7
A7: 城市基础设施配套费收入 | B7: 8,000 | C7: 12,500 | D7: 5,000 | E7: 62.5 | F7: 40.0
A8: 污水处理费收入 | B8: 6,000 | C8: 9,300 | D8: 5,000 | E8: 83.3 | F8: 53.8
A9: 其他政府性基金收入 | C9: 9,209
A10: 政府性基金预算收入 | B10: 174,000 | C10: 183,700 | D10: 117,500 | E10: =D10/B10*100 -> 67.5 | F10: =D10/C10*100 -> 64.0

Sheet 16.市本级政府性基金支出
A1: 2023年攀枝花市市本级政府性基金支出预算表
E2: 单位：万元，%
A3: 科 目 | B3: 上年预算数 | C3: 上年执行数 | D3: 预 算 数 | E3: 为上年预算 | F3: 为上年执行
A4: 科学技术支出
A5: 核电站乏燃料处理处置基金支出
A6: 文化旅游体育与传媒支出
A7: 国家电影事业发展专项资金安排的支出
A8: 旅游发展基金支出
A9: 国家电影事业发展专项资金对应专项债务收入安排的支出
A10: 社会保障和就业支出
A11: 大中型水库移民后期扶持基金支出
A12: 小型水库移民扶助基金安排的支出
A13: 小型水库移民扶助基金对应专项债务收入安排的支出
A14: 节能环保支出
A15: 可再生能源电价附加收入安排的支出
A16: 废弃电器电子产品处理基金支出
A17: 城乡社区支出 | B17: 136,300 | C17: =C18+C36+C42 -> 144,703 | D17: =D18+D36+D42 -> 92,245 | E17: =D17/B17*100 -> 67.7 | F17: =D17/C17*100 -> 63.7
A18: 国有土地使用权出让收入安排的支出 | B18: 122,300 | C18: =SUM(C19:C33) -> 122,903 | D18: =SUM(D19:D33) -> 82,245 | E18: =D18/B18*100 -> 67.2 | F18: =D18/C18*100 -> 66.9
A19: 征地和拆迁补偿支出
A20: 土地开发支出 | B20: 122,300 | C20: =116603-951 -> 115,652 | D20: =107500-7525-25255 -> 74,720 | E20: =D20/B20*100 -> 61.1 | F20: =D20/C20*100 -> 64.6
A21: 城市建设支出
A22: 农村基础设施建设支出 | C22: =2363+2619+2146+123 -> 7,251 | D22: 7,525 | F22: =D22/C22*100 -> 103.8
A23: 补助被征地农民支出
A24: 土地出让业务支出
A25: 廉租住房支出
A26: 支付破产或改制企业职工安置费
A27: 棚户区改造支出
A28: 公共租赁住房支出
A29: 保障性住房租金补贴
A30: 农业生产发展支出
A31: 农村社会事业支出
A32: 农业农村生态环境支出
A33: 其他国有土地使用权出让收入安排的支出
A34: 国有土地收益基金安排的支出
A35: 农业土地开发资金安排的支出
A36: 城市基础设施配套费安排的支出 | B36: 8,000 | C36: =SUM(C37:C41) -> 12,500 | D36: =SUM(D37:D41) -> 5,000 | E36: =D36/B36*100 -> 62.5 | F36: =D36/C36*100 -> 40.0
A37: 城市公共设施
A38: 城市环境卫生
A39: 公有房屋
A40: 城市防洪
A41: 其他城市基础设施配套费安排的支出 | B41: 8,000 | C41: 12,500 | D41: 5,000 | E41: =D41/B41*100 -> 62.5 | F41: =D41/C41*100 -> 40.0
A42: 污水处理费安排的支出 | B42: 6,000 | C42: =C43+C44+C45 -> 9,300 | D42: =D43+D44+D45 -> 5,000 | E42: =D42/B42*100 -> 83.3 | F42: =D42/C42*100 -> 53.8
A43: 污水处理设施建设和运营
A44: 代征手续费
A45: 其他污水处理费安排的支出 | B45: 6,000 | C45: 9,300 | D45: 5,000 | E45: =D45/B45*100 -> 83.3 | F45: =D45/C45*100 -> 53.8
A46: 土地储备专项债券收入安排的支出
A47: 棚户区改造专项债券收入安排的支出
A48: 城市基础设施配套费对应专项债务收入安排的支出
A49: 污水处理费对应专项债务收入安排的支出
A50: 国有土地使用权出让收入对应专项债务收入安排的支出
A51: 农林水支出
A52: 大中型水库库区基金安排的支出
A53: 三峡水库库区基金支出
A54: 国家重大水利工程建设基金安排的支出
A55: 大中型水库库区基金对应专项债务收入安排的支出
A56: 国家重大水利工程建设基金对应专项债务收入安排的支出
A57: 交通运输支出
A58: 海南省高等级公路车辆通行附加费安排的支出
A59: 车辆通行费安排的支出
A60: 港口建设费安排的支出
A61: 铁路建设基金支出
A62: 船舶油污损害赔偿基金支出
A63: 民航发展基金支出
A64: 海南省高等级公路车辆通行附加费对应专项债务收入安排的支出
A65: 政府收费公路专项债券收入安排的支出
A66: 车辆通行费对应专项债务收入安排的支出
A67: 港口建设费对应专项债务收入安排的支出
A68: 资源勘探工业信息等支出
A69: 农网还贷资金支出
A70: 金融支出
A71: 金融调控支出
A72: 其他支出 | B72: 74,900 | C72: =C73+C78 -> 81,766
A73: 其他政府性基金及对应专项债务收入安排的支出 | B73: 74,900 | C73: =C74+C75+C76 -> 80,768
A74: 其他政府性基金安排的支出 | C74: 6,863
A75: 其他地方自行试点项目收益专项债券收入安排的支出 | B75: 74,900 | C75: =76005-2100 -> 73,905
A76: 其他政府性基金债务收入安排的支出
A77: 彩票发行销售机构业务费安排的支出
A78: 彩票公益金安排的支出 | C78: 998
A79: 用于补充全国社会保障基金的彩票公益金支出
A80: 用于社会福利的彩票公益金支出 | C80: 308
A81: 用于体育事业的彩票公益金支出 | C81: 680
A82: 用于教育事业的彩票公益金支出
A83: 用于红十字事业的彩票公益金支出
A84: 用于残疾人事业的彩票公益金支出 | C84: 10
A85: 用于文化事业的彩票公益金支出
A86: 债务付息支出 | B86: 12,800 | C86: =C87 -> 14,834 | D86: =D87 -> 8,981 | E86: =D86/B86*100 -> 70.2 | F86: =D86/C86*100 -> 60.5
A87: 地方政府专项债务付息支出 | B87: 12,800 | C87: =C88 -> 14,834 | D87: =D88 -> 8,981 | E87: =D87/B87*100 -> 70.2 | F87: =D87/C87*100 -> 60.5
A88: 国有土地使用权出让金债务付息支出 | B88: 12,800 | C88: =1242+13592 -> 14,834 | D88: 8,981 | E88: =D88/B88*100 -> 70.2 | F88: =D88/C88*100 -> 60.5
A89: 债务发行费用支出 | D89: 74
A90: 地方政府专项债务发行费用支出 | D90: 74
A91: 其他政府性基金债务发行费用支出 | D91: 74
A92: 抗疫特别国债安排的支出
A93: 基础设施建设
A94: 抗疫相关支出
A95: 政府性基金预算支出 | B95: =B86+B72+B17 -> 224,000 | C95: =C86+C72+C17 -> 241,303 | D95: =D86+D72+D17+D89 -> 101,300 | E95: =D95/B95*100 -> 45.2 | F95: =D95/C95*100 -> 42.0

Sheet 17.市本级政府性基金收支平衡
A1: 2023年攀枝花市市本级政府性基金预算收支预算平衡表
A2: 单位：万元
A3: 科 目 | B3: 预 算 数 | C3: 科 目 | D3: 预 算 数
A4: 政府性基金预算收入 | B4: 117,500 | C4: 政府性基金预算支出 | D4: =B16-D11 -> 101,300
A5: 政府性基金预算上级补助收入 | C5: 政府性基金预算补助下级支出
A6: 政府性基金预算下级上解收入 | C6: 政府性基金预算上解上级支出
A7: 政府性基金预算上年结余
A8: 政府性基金预算调入资金 | C8: 政府性基金预算调出资金
A9: 一般公共预算调入
A10: 其他调入资金
A11: 债务收入 | C11: 债务还本支出 | D11: 16,200
C12: 地方政府专项债务还本支出 | D12: 16,200
A13: 债务转贷收入 | C13: 债务转贷支出
A14: 地方政府专项债务转贷收入
C15: 政府性基金预算年终结余
A16: 收 入 总 计 | B16: 117,500 | C16: 支 出 总 计 | D16: 117,500

Sheet 18.市对区基金补助
A1: 2023年市对区政府性基金预算转移支付补助预算表
B2: 单位：万元
A3: 科 目 | B3: 执行数
B4: 合计 | C4: 东区 | D4: 西区 | E4: 仁和区
A5: 补助下级支出
A6: 注：此表无数据

Sheet 19.基本建设
A1: 2023年攀枝花市市本级预算内基本建设支出预算表
B2: 单位：万元
A3: 项目名称 | B3: 项目概况 | C3: 项目开工时间 | D3: 投资金额 | E3: 备注
C4: 东区 | E4: 仁和区
A6: 注：此表无数据

Sheet 20.重大政府投资项目
A1: 2023年攀枝花市市本级重大政府投资项目预算表
B2: 单位：万元
A3: 项目名称 | B3: 项目概况 | C3: 项目开工时间 | D3: 投资金额 | E3: 备注
A6: 注：此表无数据

Sheet 21.全市国有资本经营预算收入
A1: 2023年攀枝花市国有资本经营预算收入预算表
E2: 单位：万元，%
A3: 科 目 | B3: 上年预算数 | C3: 上年执行数 | D3: 预 算 数 | E3: 为上年预算 | F3: 为上年执行
A4: 利润收入 | B4: =B5+B6 -> 5,870 | C4: =C5+C6 -> 5,870 | D4: =D5+D6 -> 7,300 | E4: =D4/B4*100 -> 124.4 | F4: =D4/C4*100 -> 124.4
A5: 投资服务企业利润收入 | B5: 5,870 | C5: 5,870 | D5: 7,300 | E5: =D5/B5*100 -> 124.4 | F5: =D5/C5*100 -> 124.4
A6: 其他国有资本经营预算企业利润收入
A7: 股利、股息收入
A8: 产权转让收入
A9: 清算收入
A10: 其他国有资本经营预算收入
A11: 合计 | B11: =B4+B7+B8+B9+B10 -> 5,870 | C11: =C4+C7+C8+C9+C10 -> 5,870 | D11: =D4+D7+D8+D9+D10 -> 7,300 | E11: =D11/B11*100 -> 124.4 | F11: =D11/C11*100 -> 124.4

Sheet 22.国有资本经营预算支出
A1: 2023年攀枝花市国有资本经营预算支出预算表
E2: 单位：万元，%
A3: 科 目 | B3: 上年预算数 | C3: 上年执行数 | D3: 预 算 数 | E3: 为上年预算 | F3: 为上年执行
A4: 一、补充全国社会保障基金
A5: 国有资本经营预算补充社保基金支出
A6: 二、解决历史遗留问题及改革成本支出 | B6: 3,483 | C6: 3,483 | D6: 2,258 | E6: 64.8 | F6: 64.8
A7: “ 三供一业” 移交补助支出 | B7: 307 | C7: 307 | D7: 298 | E7: 97.1 | F7: 97.1
A8: 国有企业办职教幼教补助支出 | B8: 1,743 | C8: 1,743
A9: 国有企业退休人员社会化管理补助支出 | B9: 1,193 | C9: 1,193
A10: 国有企业改革成本支出 | B10: 240 | C10: 240 | D10: 1,960 | E10: 816.7 | F10: 816.7
A11: 其他解决历史遗留问题及改革成本支出
A12: 三、国有企业资本金注入 | B12: 310 | C12: 310
A13: 四、国有企业政策性补贴 | B13: 1,510 | C13: 1,510
A14: 五、金融国有资本经营预算支出
A15: 六、其他国有资本经营预算支出
A16: 合计 | B16: 5,303 | C16: 5,303 | D16: 2,258 | E16: 42.6 | F16: 42.6

Sheet 23.全市国有资本经营预算收支
A1: 2023年攀枝花市国有资本经营预算收支预算平衡表
C2: 单位：万元
A3: 科 目 | B3: 预 算 数 | C3: 科 目 | D3: 预 算 数
A4: 国有资本经营预算收入 | B4: 7,300 | C4: 国有资本经营预算支出 | D4: 2,252
A5: 国有资本经营预算上级补助收入 | C5: 国有资本经营预算补助下级支出
A6: 国有资本经营预算下级上解收入 | C6: 国有资本经营预算上解上级支出
A7: 国有资本经营预算上年结余 | C7: 国有资本经营预算调出资金 | D7: 5,048
C8: 国有资本经营预算年终结余
A9: 收 入 总 计 | B9: 7,300 | C9: 支 出 总 计 | D9: 7,300

Sheet 24.市本级国有资本经营预算收入
A1: 2023年攀枝花市市本级国有资本经营预算收入预算表
E2: 单位：万元，%
A3: 科 目 | B3: 上年预算数 | C3: 上年执行数 | D3: 预 算 数 | E3: 为上年预算 | F3: 为上年执行
A4: 利润收入 | B4: 2,500 | C4: 2,500 | D4: 2,800 | E4: 112.0 | F4: 112.0
A5: 投资服务企业利润收入 | B5: 2,500 | C5: 2,500 | D5: 2,800 | E5: 112.0 | F5: 112.0
A6: 其他国有资本经营预算企业利润收入
A7: 股利、股息收入
A8: 产权转让收入
A9: 清算收入
A10: 其他国有资本经营预算收入
A11: 合计 | B11: 2,500 | C11: 2,500 | D11: 2,800 | E11: 112.0 | F11: 112.0

Sheet 25.市本级国有资本经营预算支出
A1: 2023年攀枝花市市本级国有资本经营预算支出预算表
E2: 单位：万元，%
A3: 科 目 | B3: 上年预算数 | C3: 上年执行数 | D3: 预 算 数 | E3: 为上年预算 | F3: 为上年执行
A4: 一、补充全国社会保障基金
A5: 二、解决历史遗留问题及改革成本支出
A6: “ 三供一业” 移交补助支出
A7: 国有企业办职教幼教补助支出
A8: 国有企业退休人员社会化管理补助支出
A9: 国有企业改革成本支出 | B9: 240 | C9: 240 | D9: 1,960 | E9: =D9/C9*100 -> 816.7 | F9: =D9/C9*100 -> 816.7
A10: 其他解决历史遗留问题及改革成本支出
A11: 三、国有企业资本金注入
A12: 四、国有企业政策性补贴 | B12: 1,510 | C12: 1,510
A13: 五、金融国有资本经营预算支出
A14: 六、其他国有资本经营预算支出
A15: 合计 | B15: 1,750 | C15: 1,750 | D15: 1,960 | E15: =D15/C15*100 -> 112.0 | F15: =D15/C15*100 -> 112.0

Sheet 26.市本级国有资本经营预算收支平衡
A1: 2023年攀枝花市市本级国有资本经营预算收支预算平衡表
C2: 单位：万元
A3: 科 目 | B3: 预 算 数 | C3: 科 目 | D3: 预 算 数
A4: 国有资本经营预算收入 | B4: 2,800 | C4: 国有资本经营预算支出 | D4: =B4-D7 -> 1,960
A5: 国有资本经营预算上级补助收入 | C5: 国有资本经营预算补助下级支出
A6: 国有资本经营预算下级上解收入 | C6: 国有资本经营预算上解上级支出
A7: 国有资本经营预算上年结余 | C7: 国有资本经营预算调出资金 | D7: 840
C8: 国有资本经营预算年终结余
A9: 收 入 总 计 | B9: 2,800 | C9: 支 出 总 计 | D9: 2,800

Sheet 27.市对区国有资本经营预算补助
A1: 2023年市对区政府性基金预算转移支付补助预算表
B2: 单位：万元
A3: 科 目 | B3: 执行数
B4: 合计 | C4: 东区 | D4: 西区 | E4: 仁和区
A5: 补助下级支出
A6: 注：此表无数据

Sheet 28.全市及市本级社会保险基金收入
A1: 2023年攀枝花市及市本级社会保险基金预算收入预算表
C2: 单位：万元
A3: 科目 | B3: 预 算 数
B4: 全市 | C4: 市级
A5: 社会保险基金收入 | B5: 336,160 | C5: 336,160
A6: 城乡居民基本养老保险基金收入 | B6: 19,386 | C6: 19,386
A7: 职工基本医疗保险(含生育保险）基金收入 | B7: 247,014 | C7: 247,014
A8: 城乡居民基本医疗保险基金收入 | B8: 69,760 | C8: 69,760
A9: 上年结余收入 | B9: 267,820 | C9: 267,820
A10: 说明：企业职工养老保险、机关事业单位养老保险、工伤保险、失业保险由省级统筹，城镇职工基本医疗保险、城乡居民基本养老保险、城乡居民基本医疗保险由市级统筹。

Sheet 29.全市及市本级社会保险基金支出
A1: 2023年攀枝花市及市本级社会保险基金预算支出预算表
C2: 单位：万元
A3: 科目 | B3: 预 算 数
B4: 全市 | C4: 市级
A5: 社会保险基金支出 | B5: 309,202 | C5: 309,202
A6: 城乡居民基本养老保险基金支出 | B6: 12,813 | C6: 12,813
A7: 职工基本医疗保险(含生育保险）基金支出 | B7: 229,803 | C7: 229,803
A8: 城乡居民基本医疗保险基金支出 | B8: 66,586 | C8: 66,586
A9: 年终结余 | B9: 294,778 | C9: 294,778
A10: 说明：企业职工养老保险、机关事业单位养老保险、工伤保险、失业保险由省级统筹，城镇职工基本医疗保险、城乡居民基本养老保险、城乡居民基本医疗保险由市级统筹。

Sheet 30.全市及市本级社会保险基金算平衡
A1: 2023年攀枝花市及市本级社会保险基金收支预算平衡表
F2: 单位：万元
A3: 科目 | B3: 预 算 数 | D3: 科目 | E3: 预 算 数
B4: 全市 | C4: 市级 | E4: 全市 | F4: 市级
A5: 社会保险基金收入 | B5: =B6+B7+B8 -> 336,160 | C5: 336,160 | D5: 社会保险基金支出 | E5: 309,202 | F5: 309,202
A6: 城乡居民基本养老保险基金收入 | B6: 19,386 | C6: 19,386 | D6: 城乡居民基本养老保险基金支出 | E6: 12,813 | F6: 12,813
A7: 职工基本医疗保险(含生育保险）基金收入 | B7: 247,014 | C7: 247,014 | D7: 职工基本医疗保险(含生育保险）基金支出 | E7: 229,803 | F7: 229,803
A8: 城乡居民基本医疗保险基金收入 | B8: 69,760 | C8: 69,760 | D8: 城乡居民基本医疗保险基金支出 | E8: 66,586 | F8: 66,586
A9: 上年结余收入 | B9: =E5-B5+E9 -> 267,820 | C9: =F5-C5+F9 -> 267,820 | D9: 年终结余 | E9: 294,778 | F9: 294,778
A10: 说明：企业职工养老保险、机关事业单位养老保险、工伤保险、失业保险由省级统筹，城镇职工基本医疗保险、城乡居民基本养老保险、城乡居民基本医疗保险由市级统筹。
